Cogmind - Beta 11 X5 @@@ ROGUE MODE // 2021.06.04 @ 19:18:10 Player: Yauler Stole Protohack Result: Heading to fleet! Performance ------------- Evolutions (9) 4500 Regions Visited (31) 6200 Robots Destroyed (476) 2380 Value Destroyed (23163) 23163 Prototype IDs (122) 2440 Alien Tech Used (20) 4000 Bonus (9650) 9650 TOTAL SCORE: 52333 Bonus ------- High Alert Combat Kills 3864 Follower Combat Kills 5617 Network Hubs Disabled 400 Aligned with FarCom 300 Met Data Miner 300 Met Warlord at Base 500 MAIN.C Attacked Warlord 500 Warlord Defense Kill 1036 Built Enhanced Grunts 300 Used Core Reset Matrix 3000 Hacked Protovariant 500 Win 3000 Friendly Fire -9667 Cogmind --------- Core Integrity 110/1600 Matter 300/300 Energy 949/950 System Corruption 11% Temperature Cool (0) Movement Core (50) Location To Fleet Rendezvous Parts ------- > --- POWER (2) -------- (None) > --- PROPULSION (6) --- (None) > --- UTILITY (13) ----- Experimental Energy Well Advanced Targeting Computer Advanced Targeting Computer Advanced Melee Analysis Suite Advanced Armor Integrity Analyzer > --- WEAPON (4) ------- (None) > --- INVENTORY (5) ---- Improved Potential Cannon Peak State ------------ > --- POWER ------------ Zero-point Reactor Zero-point Reactor > --- PROPULSION ------- Experimental Biometal Heavy Treads Enhanced Armored Heavy Treads > --- UTILITY ---------- Experimental Heat Sink Experimental Cooling System Large Storage Unit Experimental Energy Well Experimental Energy Well SHELL Armor Experimental Force Field Improved Hacking Suite Experimental System Shield Ghost Barrier Spacefold Activator > --- WEAPON ----------- High-powered Disruptor Cannon Sigix Broadsword > --- INVENTORY -------- Experimental Biometal Heavy Treads Matter Compressor Advanced Armor Integrity Analyzer EM Dispersion Field Improved Component Analysis Suite Experimental Field Recycling Unit Dimensional Node Initializer High-powered Transdimensional Reconstructor Core Regenerator Nova Cannon Improved Potential Cannon [Rating: 237] Favorites ----------- Power Micro Fission Core Engine Ion Engine Power Core Micro Fission Core Reactor Zero-point Reactor Propulsion Centrium Heavy Treads Treads Centrium Heavy Treads Leg Biometal Leg Wheel Wheel Utility Ghost Barrier Device Advanced Coolant Injector Storage Experimental Energy Well Processor Advanced Target Analyzer Hackware Ghost Barrier Protection Improved Propulsion Shielding Artifact Spacefold Activator Weapon Spread Laser Energy Gun Spread Laser Energy Cannon Heavy Disruptor Cannon Ballistic Gun Flak Gun Ballistic Cannon Linear Accelerator Launcher Mini Grenade Launcher Special Weapon Plasma Cutter Impact Weapon Core Stripper Slashing Weapon Sigix Broadsword Build | -11 -10 -10 -10 -9 -8 -8 -7 -7 -7 -7 -6 -6 -5 -5 -5 -5 -5 -5 -5 -4 -4 -4 -4 -3 -3 -3 -2 -2 -2 -1 -1 ------- Run | Scr Mat Min Exi Min Mat Sto Fac Low Low Dat Pro Fac Fac Was Fac Ext Cet Arc Hub Fac Upp Upp War Pro Res Qua Res Tes Sec Acc Com Slots Evolved 18 | . . . . . 4 . 2 . . . . 2 2 . . . . . . 2 . . . . 2 . 2 . . 2 . Power 1 | . . . . . . . . . . . . . . . . . . . . . . . . . . . 1 . . . . Propulsion 4 | . . . . . . . . . . . . 2 . . . . . . . . . . . . . . . . . 2 . Utility 11 | . . . . . 4 . 2 . . . . . 1 . . . . . . 2 . . . . 2 . . . . . . Weapon 2 | . . . . . . . . . . . . . 1 . . . . . . . . . . . . . 1 . . . . Parts Attached 611 | 11 20 4 3 4 36 22 34 1 4 5 6 17 14 1 3 19 19 19 5 30 3 1 23 11 49 62 18 43 28 42 54 Power 32 | 2 . . . . 4 1 2 . 1 1 . . 1 . . . . 1 . 2 . 1 . . 2 6 2 3 . 1 2 Engine 11 | 2 . . . . 4 1 1 . . 1 . . . . . . . . . . . . . . . 2 . . . . . Core 5 | . . . . . . . 1 . 1 . . . 1 . . . . . . 1 . 1 . . . . . . . . . Reactor 16 | . . . . . . . . . . . . . . . . . . 1 . 1 . . . . 2 4 2 3 . 1 2 Propulsion 103 | 4 4 . 1 1 8 4 8 1 . . 1 3 3 . 1 3 3 1 . 2 . . . 3 13 16 1 3 2 7 10 Treads 61 | 2 3 . 1 . 7 4 1 . . . . . . . . . 2 1 . 2 . . . 3 13 7 1 3 2 5 4 Leg 15 | 2 1 . . . . . . . . . . . . . . 1 . . . . . . . . . 4 . . . 1 6 Wheel 27 | . . . . 1 1 . 7 1 . . 1 3 3 . 1 2 1 . . . . . . . . 5 . . . 1 . Hover . | . . . . . . . . . . . . . . . . . . . . . . . . . . . . . . . . Flight . | . . . . . . . . . . . . . . . . . . . . . . . . . . . . . . . . Utility 224 | 2 6 . 1 1 8 5 12 . 1 . . 9 5 1 2 9 12 9 3 18 3 . 14 4 17 21 8 18 16 6 13 Device 114 | 1 2 . . . 6 1 5 . . . . 3 1 1 2 6 5 6 1 13 1 . 8 2 8 10 5 11 7 4 5 Storage 29 | . 2 . 1 . . 2 . . 1 . . . 1 . . . 1 . . 3 1 . 2 1 1 5 . 2 4 . 2 Processor 17 | 1 . . . . . 1 2 . . . . . . . . . . . . . . . 1 . 1 1 3 1 1 1 4 Hackware 14 | . . . . . . 1 1 . . . . 4 1 . . . . . . 1 . . . . 5 . . 1 . . . Protection 40 | . 2 . . 1 2 . 4 . . . . 2 2 . . 3 6 3 2 1 1 . 3 1 2 1 . 3 1 . . Artifact 10 | . . . . . . . . . . . . . . . . . . . . . . . . . . 4 . . 3 1 2 Weapon 252 | 3 10 4 1 2 16 12 12 . 2 4 5 5 5 . . 7 4 8 2 8 . . 9 4 17 19 7 19 10 28 29 Energy Gun 52 | 1 6 3 1 . 6 . 2 . . 1 . . . . . . . . . 3 . . . 1 2 1 . . 2 12 11 Energy Cannon 64 | . 2 . . 1 1 . . . . . . . . . . . . 2 1 4 . . 4 2 5 3 4 11 8 9 7 Ballistic Gun 30 | 2 . . . . . 2 6 . 1 1 1 . . . . . . . . . . . 2 . 1 2 1 . . 1 10 Ballistic Cannon 33 | . . . . . 3 5 2 . . . 1 1 . . . 1 . . . . . . 3 1 9 7 . . . . . Launcher 40 | . . . . 1 5 3 2 . 1 . 3 2 2 . . 2 3 2 1 . . . . . . 1 1 4 . 6 1 Special Weapon 10 | . 1 . . . . 1 . . . 2 . 1 2 . . 1 . 2 . . . . . . . . . . . . . Impact Weapon 2 | . . . . . . . . . . . . . . . . . . . . . . . . . . 1 . 1 . . . Slashing Weapon 21 | . 1 1 . . 1 1 . . . . . 1 1 . . 3 1 2 . 1 . . . . . 4 1 3 . . . Piercing Weapon . | . . . . . . . . . . . . . . . . . . . . . . . . . . . . . . . . Special Melee Weapon . | . . . . . . . . . . . . . . . . . . . . . . . . . . . . . . . . Unidentified Prototypes 45 | . . . . . 1 3 . . . . . 1 . . . . 5 . . . . . 5 . 1 11 1 15 1 1 . Corrupted Parts 17 | . . . . 1 1 . . . . . . . 1 . . . 2 1 . . . 1 . 5 . 1 . 4 . . . System Corruption 104 | . . . . 4 1 . . . . . . . 1 . . . 12 10 . . . 4 . 30 . 2 . 40 . . . Parts Lost 101 | . . . . . 5 7 2 . 1 . 3 . . . . 3 1 . 3 3 . . 1 1 24 11 2 5 4 11 14 Power 14 | . . . . . 1 1 1 . 1 . . . . . . . . . 1 1 . . . . 2 1 . . 1 2 2 Propulsion 25 | . . . . . . 2 . . . . 1 . . . . 3 1 . . . . . . . 5 3 . . . 2 8 Utility 43 | . . . . . 4 2 1 . . . . . . . . . . . . 1 . . 1 1 9 7 2 5 2 5 3 Weapon 19 | . . . . . . 2 . . . . 2 . . . . . . . 2 1 . . . . 8 . . . 1 2 1 Highest Loss Streak 14 | . . . . . 2 7 1 . 1 . 2 . . . . 2 1 . 2 1 . . 1 1 13 14 2 2 3 4 7 Average Slot Usage (%) 81 | . 100 100 100 100 87 87 91 61 60 61 60 88 91 85 87 85 84 83 83 87 80 77 78 77 86 84 80 78 65 70 58 Engine 2 | . 14 14 14 14 8 7 4 . . . 7 6 3 . . . . . . . . . . . . . . . . . . Core 2 | . . . . . . . 2 7 6 7 . . 1 5 5 5 5 4 . 3 5 4 5 5 2 . . . . . 1 Reactor 1 | . . . . . . . . . . . . . . . . . . . 5 1 . . . . 1 2 6 7 7 4 . Treads 9 | . 23 28 28 20 17 16 3 . . . . . . . . . 4 11 11 9 10 10 10 9 11 8 8 7 7 10 5 Wheel 4 | . . . . 7 . . 11 15 15 15 14 17 23 23 23 20 10 . . . . . . . . 4 . . . . . Device 12 | . 4 . . . 26 15 17 7 7 7 7 7 7 8 10 5 4 5 5 18 17 15 14 10 12 15 14 17 9 9 4 Storage 9 | . 13 14 14 14 9 15 10 7 7 7 7 6 5 5 5 5 5 5 5 6 8 10 10 14 9 10 17 16 11 12 8 Processor 2 | . . . . . . 8 13 . . . . . . . . . . . . . . . . . 3 6 5 4 . 6 15 Hackware 13 | . . . . . . 4 6 . . . . 21 26 23 23 23 23 23 23 24 22 21 21 21 29 17 13 11 10 5 . Protection 5 | . 9 14 14 14 8 2 3 7 7 7 7 14 6 5 5 9 13 13 12 6 5 5 5 5 1 1 1 1 4 4 2 Energy Gun 4 | . 18 24 28 7 9 . 1 7 7 3 . . . . . . . . . 7 5 5 2 . 1 . . . . 4 3 Energy Cannon 2 | . 8 2 . 10 2 . . . . . . . . . . . . 6 2 7 5 5 6 5 4 . 5 1 1 3 . Ballistic Gun 1 | . 1 . . . . 8 13 7 6 3 1 . . . . . . . . . . . 1 . . . . . . . 3 Ballistic Cannon 1 | . . . . . 3 7 . . . . 6 5 . . . . . . . . . . . 4 7 4 . . . . . Launcher 1 | . . . . 10 . . . . . . 4 2 4 5 5 1 4 1 7 . . . . . . . . 2 . 5 . Slashing Weapon 1 | . . . . . . 1 . . . . . 1 5 5 5 7 5 2 5 . . . . . . 1 4 3 1 . . Naked Turns . | . . . . . . . . . . . . . . . . . . . . . . . . . . . . . . . . Heaviest Build 177 | 9 38 38 38 46 57 46 117 115 139 139 143 87 99 92 95 119 106 96 101 133 136 152 177 159 149 144 103 135 134 137 115 Greatest Support 225 | 40 40 40 40 40 44 46 46 26 26 26 26 46 48 48 48 48 160 160 160 160 160 160 160 160 160 140 150 165 175 225 152 Greatest Overweight (x) 13 | . . . . 2 3 9 5 5 5 5 13 4 2 1 1 5 6 . . 1 . . 1 1 2 11 . 1 . . 1 Average Overweight (x) . | . . . . 1 . . 1 4 4 5 5 2 1 1 1 2 1 . . . . . . . . 1 . . . . . Largest Inventory Capacity 25 | 5 15 15 15 15 15 15 15 15 20 20 20 20 20 20 20 20 20 20 20 25 25 25 25 25 25 25 15 15 15 15 15 Average Capacity 18 | 5 8 15 15 15 15 15 15 15 19 20 20 20 20 20 20 20 20 20 20 24 25 25 25 25 25 17 15 15 15 15 8 Most Carried 25 | 5 11 13 15 15 15 15 15 13 16 20 20 20 20 18 18 20 20 20 20 25 25 25 25 24 25 20 15 15 15 15 15 Average Carried 16 | 1 7 12 13 14 14 14 14 12 15 16 17 18 16 16 16 18 18 19 18 20 24 24 23 21 20 15 13 14 13 13 7 Final Capacity 25 | 5 15 15 15 15 15 15 15 15 20 20 20 20 20 20 20 20 20 20 20 25 25 25 25 25 25 15 15 15 15 15 5 Final Carried 25 | 5 11 13 15 15 15 15 11 13 16 20 18 15 18 17 18 18 20 20 18 23 25 24 20 22 14 13 15 15 15 10 2 Class Distribution -------------------- 26% | Mutant 25% | Wizard-Mutant 11% | Hacker-Mutant 10% | Wizard-Gunner 9% | Wizard-Tank 6% | Alien-Mutant Dominant Class ---------------- Mutant | -10/Materials Mutant | -10/Mines Mutant | -10/Exiles Mutant | -9/Mines Mutant | -8/Materials Mutant | -8/Storage Mutant | -7/Factory Mutant | -7/Lower Caves Mutant | -7/Lower Caves Mutant | -7/Data Miner Mutant | -6/Proximity Caves Wizard-Mutant | -6/Factory Wizard-Mutant | -5/Factory Wizard-Mutant | -5/Waste Wizard-Mutant | -5/Factory Wizard-Mutant | -5/Extension Wizard-Mutant | -5/Cetus Wizard-Tank | -5/Archives Wizard-Mutant | -5/Hub_04(d) Wizard-Gunner | -4/Factory Wizard-Tank | -4/Upper Caves Wizard-Tank | -4/Upper Caves Wizard-Mutant | -4/Warlord Wizard-Tank | -3/Proximity Caves Wizard-Gunner | -3/Research Wizard-Mutant | -3/Quarantine Hacker-Mutant | -2/Research Hacker-Mutant | -2/Testing Alien-Mutant | -2/Section 7 Alien-Mutant | -1/Access Alien-Mutant | -1/Command Resources | -11 -10 -10 -10 -9 -8 -8 -7 -7 -7 -7 -6 -6 -5 -5 -5 -5 -5 -5 -5 -4 -4 -4 -4 -3 -3 -3 -2 -2 -2 -1 -1 ----------- Run | Scr Mat Min Exi Min Mat Sto Fac Low Low Dat Pro Fac Fac Was Fac Ext Cet Arc Hub Fac Upp Upp War Pro Res Qua Res Tes Sec Acc Com Matter Collected 13582 | 344 193 17 . 82 652 714 800 45 120 20 212 350 149 10 10 651 354 242 349 833 259 187 335 544 1861 1778 422 737 389 463 460 Remotely 1350 | . . . . . . . . . . . . . . . . . . . . . . . . 112 995 243 . . . . . Salvage Created 23244 | 145 457 29 . 140 1656 639 1020 125 209 30 376 213 49 654 37 652 573 431 1058 1536 . 185 348 780 1491 1673 887 1412 670 4563 1206 Parts 999 | 10 25 3 . 7 57 46 58 1 7 5 9 11 1 36 5 29 31 18 33 47 . 5 16 34 83 67 30 66 30 183 46 Haulers Intercepted 16 | . 1 . . . 4 4 1 . . . . . . . . . . . 2 . . . . . 1 1 1 . . 1 . Recyclers Shooed 21 | . 1 . . . 2 . 2 . . . . 2 . . 1 . . . . 1 . . . . . 4 . . . 7 1 Parts Field Recycled . | . . . . . . . . . . . . . . . . . . . . . . . . . . . . . . . . Retrieved Matter . | . . . . . . . . . . . . . . . . . . . . . . . . . . . . . . . . Parts Self-Destructed 132 | . . . . . . . . 12 13 . 17 . . . . . . . . . . 2 69 19 . . . . . . . Prevented 55 | . . . . . . . . 1 . . . . . . . . . . . . 11 8 17 18 . . . . . . . Kills | -11 -10 -10 -10 -9 -8 -8 -7 -7 -7 -7 -6 -6 -5 -5 -5 -5 -5 -5 -5 -4 -4 -4 -4 -3 -3 -3 -2 -2 -2 -1 -1 ------- Run | Scr Mat Min Exi Min Mat Sto Fac Low Low Dat Pro Fac Fac Was Fac Ext Cet Arc Hub Fac Upp Upp War Pro Res Qua Res Tes Sec Acc Com Combat Hostiles Destroyed 332 | . 8 3 . 6 31 14 17 3 7 . 9 . . . . 7 7 2 12 25 . 1 9 11 34 27 9 18 11 48 13 Melee 11 | . . . . . . . . . . . . . . . . . . 2 . 3 . . . . . 3 . . 3 . . Guns 78 | . 3 3 . . 15 3 14 3 2 . 2 . . . . . . . . 5 . . 4 . 3 3 . . . 14 4 Cannons 129 | . 5 . . 1 5 8 . . . . 1 . . . . 2 . . . 11 . . 5 8 29 18 3 12 6 14 1 AOE 67 | . . . . 5 8 3 3 . 5 . 6 . . . . 1 5 . 11 1 . . . . 2 3 . 3 . 8 3 Classes Destroyed 23 | 2 4 1 . . 5 1 1 1 . . 1 . . 1 . . . . . 1 . 1 2 . . . . 1 1 . . Worker 39 | . 2 . . . 4 2 5 . . . . 2 2 . 2 . . . 2 . . . . . . 2 1 1 . 11 3 Builder 20 | . . . . . . 1 4 . . . . 1 . . . 1 . . 2 1 . . . . 1 1 . 2 . 6 . Tunneler 4 | 3 . . . . . . . . . . . . . . . . . . 1 . . . . . . . . . . . . Hauler 16 | . 1 . . . 4 4 1 . . . . . . . . . . . 2 . . . . . 1 1 1 . . 1 . Recycler 19 | 1 . . . . 3 . 2 . . . . 1 . . . 1 . . 1 . . . . . . 3 . 1 . 4 2 Minesweeper 2 | . . . . . . . . . . . . . . . . . . . . . . 2 . . . . . . . . . Mechanic 2 | . . . . . 1 . . . . . . . . . . . . . . . . . . . . 1 . . . . . Operator 14 | . . . . . 1 . 1 . . . . . . . . . . 9 1 . . . . . 1 . . 1 . . . Drone 1 | . . . . . . . . . . . 1 . . . . . . . . . . . . . . . . . . . . Watcher 11 | . 1 . . . 1 . 1 . . . . . . . . . 1 . 2 . . . . . 1 . . . . 4 . Swarmer 51 | . . 3 . . . 3 1 . . . 1 . . . . . 4 . 3 3 . 1 3 . 13 5 1 . 4 5 1 Grunt 128 | . 8 . . 6 21 6 11 1 6 . 4 . . 1 . . . . 7 7 . 1 3 6 8 8 7 3 1 13 . Brawler 4 | . . . . . . . . 1 . . 2 . . . . . . . . . . . . 1 . . . . . . . Duelist 8 | . . . . . 1 . 1 1 . . 1 . . . . . . . . . . . . 1 . 3 . . . . . Protector 1 | . . . . . . . . . . . . . . . . . . . . . . . 1 . . . . . . . . Sentry 34 | . . . . . 7 5 3 . . . 2 . . . . 7 . 2 . 3 . . . . 1 . 1 . . 3 . Demolisher 1 | . . . . . . . . . . . . . . . . . . . . . . . 1 . . . . . . . . Hunter 34 | . . . . . 2 . . . . . . . . . . . 1 . 2 4 . . . 2 . . . 3 . 14 6 Programmer 68 | . . . . . . . 1 . 1 . . . . . . . . . . 8 . . . . 12 11 . 11 5 13 6 Behemoth 2 | . . . . . . . . . . . . . . . . . . . . 1 . . . 1 . . . . . . . Cetus Guard 2 | . . . . . . . . . . . . . . . . . 2 . . . . . . . . . . . . . . S7 Guard 1 | . . . . . . . . . . . . . . . . . . . . . . . . . . . . . 1 . . Executioner 1 | . . . . . . . . . . . . . . . . . . . . . . . 1 . . . . . . . . Fortress 1 | . . . . . . . . . . . . . . . . . . . . . . . . . . . . 1 . . . Assembled 1 | . . . . . . . . . . . . . . . . . . . . . . . . . . . . . 1 . . Thug 8 | . . . . . . . . . . . . . . 7 . . 1 . . . . . . . . . . . . . . Savage 1 | . . . . . . . . . . . . . . . . . 1 . . . . . . . . . . . . . . Martyr 2 | . . . . . . . . . . . . . . 2 . . . . . . . . . . . . . . . . . Best Kill Streak 16 | 2 3 3 . 3 8 9 8 2 6 . 7 2 2 . 1 3 4 2 8 5 . 1 5 3 8 5 8 5 3 16 3 Combat Bots Only 9 | . 3 3 . 3 5 9 4 2 6 . 7 . . . . 3 4 2 3 5 . 1 5 3 7 5 8 5 3 9 2 Max Kills in Single Turn 5 | 1 2 1 . 2 2 3 3 1 5 1 5 1 1 1 1 1 2 1 3 2 . 1 2 1 3 2 1 2 1 4 2 Gunslinging 1 | . . . . . . . 1 . . . . . . . . . . . . . . . . . . . . . . . . Exploded 5 | . . . . 2 1 3 2 . 5 . 5 . . . . 1 2 . 2 1 . . . . 2 1 . 1 . 2 1 Melee 2 | . . . . . . . . . . . . . . . . . . 1 . 1 . . . . . 2 . . 1 . . Uniques/NPCs Destroyed 2 | . . . . . . . . . . 1 . . . . . . 1 . . . . . . . . . . . . . . Data Miner (-7/Data Miner) A7 (-5/Cetus) Combat | -11 -10 -10 -10 -9 -8 -8 -7 -7 -7 -7 -6 -6 -5 -5 -5 -5 -5 -5 -5 -4 -4 -4 -4 -3 -3 -3 -2 -2 -2 -1 -1 -------- Run | Scr Mat Min Exi Min Mat Sto Fac Low Low Dat Pro Fac Fac Was Fac Ext Cet Arc Hub Fac Upp Upp War Pro Res Qua Res Tes Sec Acc Com Damage Taken 48514 | . 211 53 . 46 1319 1169 767 194 439 . 941 26 71 51 11 906 654 215 1739 2289 89 143 1134 1106 7271 4830 1055 2952 5101 6531 7201 Core 5187 | . 10 . . 15 152 176 175 44 42 . . 12 . . . 145 122 28 147 108 21 . 106 58 720 403 . 107 896 210 1490 Absorbed by Shields 3294 | . . . . . 286 252 151 . . . . . 27 . 9 65 66 . . . . . 11 . . 154 . 233 1959 . 81 Reduced by Siege Mode 1314 | . . . . . . . . . . . . . . . . . . . . 97 . . 71 53 221 52 104 198 77 370 71 Redirected to Core 48 | . . . . . . . . . . . . . . . . . . . . . . . . . . 48 . . . . . Core Remaining (%) 55 | 100 . . . 90 . 40 . . . . 62 98 . . . . . . 55 . . . . 74 . 6 . . 23 . 6 Volleys Fired 1156 | 34 24 4 . 6 127 49 72 5 12 8 20 10 1 . . 27 19 26 32 64 3 12 23 41 89 92 35 48 85 141 47 Largest 4 | 1 2 2 . 2 2 2 2 2 2 1 2 2 1 . . 1 1 3 1 3 2 2 3 2 3 3 1 2 2 4 4 Hottest 384 | 20 130 130 . 108 130 78 108 108 108 20 108 64 40 . . 46 46 200 90 295 190 190 166 176 281 237 300 226 226 382 384 Shots Fired 1996 | 34 47 8 . 9 198 96 133 10 19 8 25 14 1 . . 27 19 61 32 161 6 20 53 59 240 152 35 71 76 267 115 Gun 796 | 34 18 8 . 2 126 42 129 10 18 . 8 . . . . . . . . 70 4 8 13 . 40 14 . . 7 154 91 Cannon 1026 | . 28 . . 1 59 52 . . . . 14 10 . . . 9 . 45 1 91 2 12 40 59 200 134 35 61 69 86 18 Launcher 140 | . . . . 6 13 1 4 . 1 . 3 . . . . 15 19 . 31 . . . . . . 4 . 10 . 27 6 Special 34 | . 1 . . . . 1 . . . 8 . 4 1 . . 3 . 16 . . . . . . . . . . . . . Kinetic 658 | 34 . . . . 14 94 120 5 7 . 19 10 . . . 9 . . . . . . 16 26 163 121 . . . . 20 Thermal 876 | . 47 8 . 2 126 . 9 5 11 7 3 4 . . . . . 61 1 161 4 8 . 11 77 25 1 61 60 102 82 Explosive 61 | . . . . 6 13 1 4 . 1 . 3 . . . . . . . 19 . . . . . . 4 . 10 . . . Electromagnetic 270 | . . . . 1 45 . . . . . . . . . . 15 19 . 12 . 2 12 . 22 . 2 34 . 16 84 6 Slashing 88 | . . . . . . . . . . . . . . . . . . . . . . . . . . . . . . 81 7 Entropic 37 | . . . . . . . . . . . . . . . . . . . . . . . 37 . . . . . . . . Robot Hit Streak 33 | 8 11 4 . 7 12 8 14 7 8 2 7 5 3 . . 9 5 8 8 14 3 6 11 12 21 24 29 33 25 13 17 Robot Miss Streak 13 | 3 2 4 . 2 7 3 9 4 6 2 13 4 . . . 2 3 3 3 4 1 3 5 3 4 4 1 2 2 5 2 Penetration Max 2 | . . . . . . . . . . . . . . . . . . . . . . . 1 . 2 1 . . . 1 . Secondary Targets 6 | . . . . . 1 . 1 1 . . . . . . . . . . . . . . . . 1 . . . . 2 . Max Gunslinging Chain 1 | . . . . . 1 . 1 1 . . . . . . . . . . . . . . . . 1 . . . . 1 . Shots Hit Robots 1412 | 22 31 6 . 5 162 62 107 10 19 4 22 14 4 20 3 27 17 50 16 109 5 12 26 26 133 110 35 62 50 167 76 Core Hits 1090 | 8 21 9 . 8 163 36 130 14 30 3 55 18 2 10 2 28 26 23 46 45 . 5 13 16 57 57 11 36 15 165 38 Critical Kills 26 | . 1 . . . . . 1 . . . . . . . . . . . . 2 . . 3 7 4 3 1 2 . 1 1 Critical Parts Destroyed 20 | . . . . . . . . . . . . . . . . . . . . . 1 . 1 2 5 9 . 1 . . 1 Critical Strikes 123 | . 1 . . . 1 4 1 . . 1 . . . 1 . . . . . 8 1 . 11 11 29 25 2 3 . 17 7 Burn 13 | . . . . . . . . . . . . . . . . . . . . 6 . . . . . . . . . 4 3 Meltdown 7 | . 1 . . . . . . . . . . . . . . . . . . 2 . . . . . . . 2 . 1 1 Destroy 40 | . . . . . . . 1 . . . . . . . . . . . . . 1 . 4 10 9 12 1 1 . . 1 Blast 37 | . . . . . 1 3 . . . . . . . . . . . . . . . . . . 20 13 . . . . . Corrupt 4 | . . . . . . . . . . . . . . . . . . . . . . . . 1 . . 1 . . 2 . Sever 15 | . . . . . . 1 . . . 1 . . . 1 . . . . . . . . . . . . . . . 10 2 Sunder 7 | . . . . . . . . . . . . . . . . . . . . . . . 7 . . . . . . . . Melee Attacks 184 | . 6 6 . . 3 3 . . . . . 5 4 20 3 6 13 13 3 10 . . . . . 17 3 27 42 . . Kinetic 2 | . . . . . . . . . . . . . . . . . . . . . . . . . . . . 2 . . . Impact . | . . . . . . . . . . . . . . . . . . . . . . . . . . . . . . . . Slashing 182 | . 6 6 . . 3 3 . . . . . 5 4 20 3 6 13 13 3 10 . . . . . 17 3 25 42 . . Piercing . | . . . . . . . . . . . . . . . . . . . . . . . . . . . . . . . . Sneak Attacks 55 | . . . . . 2 3 . . . . . 1 2 20 3 5 13 . . . . . . . . 1 1 3 1 . . Combat Hostiles 3 | . . . . . . . . . . . . . . 2 . . . . . . . . . . . . . . 1 . . Follow-up Attacks 3 | . . . . . . . . . . . . . . . . . . 2 . . . . . . . 1 . . . . . Damage Inflicted 70730 | 166 471 78 . 707 3893 1669 2395 216 940 34 1033 297 322 2990 481 1903 2902 1743 3296 3928 123 479 1574 610 5583 5813 1620 4176 2488 15040 3760 Guns 13488 | 166 168 70 . 16 1486 364 1790 216 353 . 150 . . . . . . . . 1295 73 119 209 . 1001 183 . . 120 3729 1980 Cannons 26334 | . 299 . . 30 1117 748 . . . . 151 177 . . . 248 . 1306 . 2021 50 215 1365 610 4108 3936 1324 2303 1455 4371 500 Explosions 20615 | . . . . 652 982 271 604 . 587 . 732 . . . . 897 1335 . 3284 239 . 145 . . 445 1016 90 1132 . 6929 1275 Melee 9921 | . . . . . 245 268 . . . . . 87 322 2990 481 758 1567 352 . 313 . . . . . 678 206 741 913 . . Ramming 220 | . 4 8 . 9 63 18 1 . . . . . . . . . . . 12 60 . . . . 29 . . . . 11 5 Kinetic 11573 | 166 . . . . 173 1112 1655 105 147 . 245 177 . . . 248 . . . . . . 264 224 3189 3415 . 53 . . 400 Thermal 27279 | . 467 70 . 119 1551 . 266 111 206 34 56 33 . . . 78 222 1391 119 3555 73 264 . . 1920 646 290 2303 1266 9386 2853 Explosive 7500 | . . . . 549 917 271 473 . 587 . 732 . . . . . . . 1378 . . . . . 445 1016 . 1132 . . . Electromagnetic 10355 | . . . . 30 944 . . . . . . . . . . 819 1113 . 1787 . 50 215 . 386 . 58 1124 . 309 3200 320 Impact . | . . . . . . . . . . . . . . . . . . . . . . . . . . . . . . . . Slashing 12493 | . . . . . 245 268 . . . . . 87 322 2990 481 758 1567 352 . 313 . . . . . 678 206 688 913 2443 182 Piercing . | . . . . . . . . . . . . . . . . . . . . . . . . . . . . . . . . Entropic 1310 | . . . . . . . . . . . . . . . . . . . . . . . 1310 . . . . . . . . Highest Corruption 77 | . . . . 4 1 1 . . 1 1 2 . 1 1 1 1 10 11 6 6 6 11 11 32 17 24 . 68 77 6 13 Average Corruption 10 | . . . . 4 1 1 . . 1 1 1 . 1 1 1 1 6 3 2 3 6 7 11 1 5 14 . 56 63 3 4 Corruption Purged 26 | . . . . . . . . . . . . . . . . 1 11 11 . . . . . . . 3 . . . . . Effects 384 | . . . . 6 7 2 . . 1 1 3 . 1 3 3 7 4 12 . 21 16 26 1 7 43 36 . 68 83 15 18 Message Errors 108 | . . . . 2 2 2 . . 1 1 3 . 1 1 1 3 3 5 . 8 6 3 . 4 8 12 . 16 15 4 7 Matter Fused 83 | . . . . 2 . . . . . . . . . . . . 1 2 . 6 4 8 1 . 12 6 . 16 18 3 4 Heat Flow Errors 32 | . . . . 1 . . . . . . . . . . . . . . . 1 2 4 . 1 6 4 . 6 5 1 1 Energy Discharges 36 | . . . . . . . . . . . . . . 1 1 2 . 3 . 1 1 3 . . 3 7 . 6 6 . 2 Parts Rejected 4 | . . . . . . . . . . . . . . . . . . . . . . . . . . . . 1 2 1 . Data Loss (minor) 49 | . . . . 1 4 . . . . . . . . 1 1 2 . . . 2 1 4 . 2 4 4 . 6 12 2 3 Data Loss (major) 17 | . . . . . . . . . . . . . . . . . . 1 . . 1 4 . . 2 1 . 3 4 1 . Misfires 11 | . . . . . . . . . . . . . . . . . . . . 1 1 . . . 5 1 . . . 3 . Alerts 2 | . . . . . . . . . . . . . . . . . . . . . . . . . . . . 2 . . . Misdirections 17 | . . . . . . . . . . . . . . . . . . . . . . . . . . . . 5 11 . 1 Weapon Failures 25 | . . . . . 1 . . . . . . . . . . . . 1 . 2 . . . . 3 1 . 7 10 . . Overload Shots . | . . . . . . . . . . . . . . . . . . . . . . . . . . . . . . . . Overflow Damage 6181 | . . . . 9 220 26 3 . 2 . 8 47 108 158 . 415 137 107 170 101 . 27 243 . 159 380 111 536 421 2486 307 Projectiles 2459 | . . . . . 49 6 . . . . . . . . . . . 107 . 101 . 22 243 . 129 236 . 122 168 1103 173 Explosions 1915 | . . . . 9 18 20 3 . 2 . 8 . . . . . 41 . 170 . . 5 . . 30 81 . 11 . 1383 134 Melee 1807 | . . . . . 153 . . . . . . 47 108 158 . 415 96 . . . . . . . . 63 111 403 253 . . Knockbacks 107 | . . . . . 3 13 . . . . 7 8 . . . . . . 1 . . . 1 . 35 39 . . . . . Impact 3 | . . . . . 2 . . . . . . . . . . . . . 1 . . . . . . . . . . . . Kinetic 86 | . . . . . 1 7 . . . . 6 8 . . . . . . . . . . 1 . 31 32 . . . . . Secondary 18 | . . . . . . 6 . . . . 1 . . . . . . . . . . . . . 4 7 . . . . . Self-Inflicted Damage 1469 | . . . . . 26 60 . . . . 85 . . . . 48 13 . 317 . . 20 . . 23 358 . 84 . 269 166 Shots 42 | . . . . . 1 2 . . . . 3 . . . . 5 2 . 11 . . 1 . . 1 4 . 3 . 7 2 Rammed 30 | . 3 2 . 2 5 6 1 . . . . . . . . . . . 1 6 . . . . 1 1 . . . . 2 Targets Rammed 36 | . 3 2 . 2 6 6 1 . . . . . . . . . . . 1 6 . . . . 2 1 . . . 1 5 Kicked 3 | . . . . . . . . . . . . . . . . . . . . . . . . . . . . . . . 3 Crushed 3 | . . . . . 1 . . . . . . . . . . . . . . . . . . . 1 . . . . 1 . Highest Temperature 678 | . 144 252 . 186 336 32 54 93 113 . 45 . 18 . . 260 102 30 133 379 198 193 300 208 253 156 224 404 406 416 678 Average Temperature 92 | . 44 129 . 54 98 14 22 36 39 . 23 . 18 . . 94 43 16 61 97 82 87 107 111 83 85 45 187 90 77 202 Received Heat Transfer 4783 | . 120 . . 15 562 479 228 29 123 . 93 . 4 12 . 220 54 45 225 223 . 9 215 174 697 444 162 204 131 243 72 Effects 25 | . . . . . 1 . . . . . . . . . . . . . . 1 . . . . 2 . . 3 1 1 16 Shutdowns 2 | . . . . . . . . . . . . . . . . . . . . . . . . . . . . . . . 2 Energy Bleed 6 | . . . . . 1 . . . . . . . . . . . . . . 1 . . . . . . . 1 1 . 2 Interference 4 | . . . . . . . . . . . . . . . . . . . . . . . . . 2 . . . . 1 1 Matter Decay 4 | . . . . . . . . . . . . . . . . . . . . . . . . . . . . 1 . . 3 Short Circuit 2 | . . . . . . . . . . . . . . . . . . . . . . . . . . . . . . . 2 Damage (minor) 5 | . . . . . . . . . . . . . . . . . . . . . . . . . . . . 1 . . 4 Damage (core) 2 | . . . . . . . . . . . . . . . . . . . . . . . . . . . . . . . 2 Siege Activations 65 | . . . . . . . . . . . . . . . . . . . . 14 1 . 3 5 8 8 1 5 4 13 3 Total Turns 1669 | . . . . . . . . . . . . . . . . . . . . 547 2 . 35 47 351 96 57 116 115 227 76 Longest Duration 368 | . . . . . . . . . . . . . . . . . . . . 368 2 . 18 14 157 28 57 57 60 54 40 Robots Corrupted 41 | . . . . . 4 . . . . . . . . . . 4 2 . 2 . . 2 . 3 . . 7 . 3 12 2 Combat Hostiles 35 | . . . . . 3 . . . . . . . . . . 4 2 . 1 . . 1 . 3 . . 6 . 2 11 2 Parts Fried 61 | . . . . . 8 . . . . . . . . . . 3 4 . 6 . . 4 . 2 . . 8 . 2 21 3 Impact Corruptions 1 | . . . . . . . . . . . . . . . . . . . . . . . . . . 1 . . . . . Robots Melted 12 | . 1 . . . . . . . . . . . . . . . . . . 5 . . . . . . . 2 . 1 3 Combat Hostiles 11 | . . . . . . . . . . . . . . . . . . . . 5 . . . . . . . 2 . 1 3 Parts Melted 72 | . 4 . . . 2 . . . . . 1 . . . . . . 3 . 23 . . . . 2 . . 13 . 8 16 Heat Transferred 27608 | . 1021 90 . 120 1950 . 400 250 450 111 125 111 . . . 50 200 1171 150 4954 111 435 . . 1941 592 50 1850 962 7419 3095 Parts Sabotaged . | . . . . . . . . . . . . . . . . . . . . . . . . . . . . . . . . Parts Stolen . | . . . . . . . . . . . . . . . . . . . . . . . . . . . . . . . . Parts Stripped . | . . . . . . . . . . . . . . . . . . . . . . . . . . . . . . . . Power Chain Reactions 13 | . . . . . 1 . . . . . . . . . . 1 4 . 3 . . 1 . . . . 1 . . 2 . Missiles Intercepted . | . . . . . . . . . . . . . . . . . . . . . . . . . . . . . . . . Alert | -11 -10 -10 -10 -9 -8 -8 -7 -7 -7 -7 -6 -6 -5 -5 -5 -5 -5 -5 -5 -4 -4 -4 -4 -3 -3 -3 -2 -2 -2 -1 -1 ------- Run | Scr Mat Min Exi Min Mat Sto Fac Low Low Dat Pro Fac Fac Was Fac Ext Cet Arc Hub Fac Upp Upp War Pro Res Qua Res Tes Sec Acc Com Peak Influence 1888 | 20 178 139 . 193 569 588 480 . . . . 267 1708 390 641 355 657 288 1067 1030 . . . . 946 581 355 535 523 1888 1701 Initial 1136 | . 13 69 . . 74 224 144 . . . . 81 130 375 92 308 74 174 38 512 . . . . 67 498 301 11 253 170 1136 Average 378 | 13 59 132 . 57 282 350 288 . . . . 89 721 293 368 143 319 183 343 530 . . . . 370 432 217 223 347 862 1367 Maximum Alert Level 5 | . . . . . 2 2 2 . . . . 1 5 1 2 1 2 1 3 3 . . . . 3 2 1 2 2 5 5 Low Security (%) 35 | 100 100 100 . 100 37 8 33 . . . . 91 4 29 11 65 11 50 14 35 . . . . 23 . 60 54 . 6 . Level 1 31 | . . . . . 33 56 45 . . . . 8 . 70 54 34 63 49 58 2 . . . . 42 26 39 27 81 20 . Level 2 22 | . . . . . 28 34 21 . . . . . 56 . 34 . 25 . 20 24 . . . . 29 73 . 17 18 28 . Level 3 5 | . . . . . . . . . . . . . 30 . . . . . 6 37 . . . . 4 . . . . 13 . Level 4 4 | . . . . . . . . . . . . . 2 . . . . . . . . . . . . . . . . 11 94 Level 5 1 | . . . . . . . . . . . . . 4 . . . . . . . . . . . . . . . . 19 5 High Security . | . . . . . . . . . . . . . . . . . . . . . . . . . . . . . . . . Max Security . | . . . . . . . . . . . . . . . . . . . . . . . . . . . . . . . . Squads Dispatched 114 | . 3 . . . 5 . 6 . . . 1 3 7 . 3 . . . 7 16 . . . . 9 9 4 14 8 12 7 Investigation 11 | . 2 . . . 3 . . . . . . . . . . . . . 2 1 . . . . . . . 2 . . 1 Extermination 33 | . . . . . . . 1 . . . . 2 1 . 1 . . . . 5 . . . . 4 5 . 5 3 3 3 Reinforcement 35 | . 1 . . . 1 . 4 . . . . 1 2 . . . . . 1 3 . . . . 2 3 4 4 4 3 2 Assault 16 | . . . . . . . . . . . 1 . 3 . . . . . 1 2 . . . . . 1 . 2 1 4 1 Garrison 19 | . . . . . 1 . 1 . . . . . 1 . 2 . . . 3 5 . . . . 3 . . 1 . 2 . Intercept . | . . . . . . . . . . . . . . . . . . . . . . . . . . . . . . . . Construction Impeded 10 | . . . . . . . 1 . . . . 1 1 . . . . . 1 2 . . . . 1 . . . . 3 . Haulers Reinforced 5 | . . . . . . . 1 . . . . . . . . . . . . . . . . . . . 3 1 . . . Cargo Convoy Interrupts 1 | . . . . . . . . . . . . . . . . . . . . . . . . . 1 . . . . . . Stealth | -11 -10 -10 -10 -9 -8 -8 -7 -7 -7 -7 -6 -6 -5 -5 -5 -5 -5 -5 -5 -4 -4 -4 -4 -3 -3 -3 -2 -2 -2 -1 -1 --------- Run | Scr Mat Min Exi Min Mat Sto Fac Low Low Dat Pro Fac Fac Was Fac Ext Cet Arc Hub Fac Upp Upp War Pro Res Qua Res Tes Sec Acc Com Distress Signals 48 | . 1 . . . 4 2 5 . . . . . 1 . 2 2 2 . 1 4 . . . . . 3 11 1 1 8 . Communications Jammed . | . . . . . . . . . . . . . . . . . . . . . . . . . . . . . . . . Distress Signals . | . . . . . . . . . . . . . . . . . . . . . . . . . . . . . . . . Times Spotted 763 | . 14 3 . 5 49 20 30 18 13 . 19 5 22 8 7 29 22 28 24 46 2 13 33 13 82 49 15 30 43 69 52 Peak Tracking Total 23 | . 4 3 . 3 4 12 5 7 6 . 8 3 6 4 3 8 9 2 7 7 1 5 9 5 23 6 8 5 8 10 15 Tactical Retreats 48 | . . . . . 2 1 3 . . . 1 . . 2 . 4 3 . 2 2 . . 2 1 9 1 . . 5 3 7 Traps | -11 -10 -10 -10 -9 -8 -8 -7 -7 -7 -7 -6 -6 -5 -5 -5 -5 -5 -5 -5 -4 -4 -4 -4 -3 -3 -3 -2 -2 -2 -1 -1 ------- Run | Scr Mat Min Exi Min Mat Sto Fac Low Low Dat Pro Fac Fac Was Fac Ext Cet Arc Hub Fac Upp Upp War Pro Res Qua Res Tes Sec Acc Com Traps Triggered 22 | . . . . 1 . . 1 . . . . . 1 . . 4 . . . 1 . 1 . 3 . 3 . 2 . . 5 Indirectly . | . . . . . . . . . . . . . . . . . . . . . . . . . . . . . . . . Trap Hack Attempts . | . . . . . . . . . . . . . . . . . . . . . . . . . . . . . . . . Triggered . | . . . . . . . . . . . . . . . . . . . . . . . . . . . . . . . . Disarmed 12 | . . . . . . . . . . . . . . . . 6 . . . . . . . . 6 . . . . . . Reprogrammed 6 | . . . . . . . . . . . . . . . . . . . . . . . . . 6 . . . . . . Reused 7 | . . . . . . . . . . . . . . . . . . . . . . . 3 1 3 . . . . . . Traps Extracted . | . . . . . . . . . . . . . . . . . . . . . . . . . . . . . . . . Installed 8 | . . . . . . . . . . . . . . . . . . . . . . 1 3 4 . . . . . . . Triggered 19 | . . . . . 3 . . . . . . . . . . . . . . . . . 12 1 3 . . . . . . Machines | -11 -10 -10 -10 -9 -8 -8 -7 -7 -7 -7 -6 -6 -5 -5 -5 -5 -5 -5 -5 -4 -4 -4 -4 -3 -3 -3 -2 -2 -2 -1 -1 ---------- Run | Scr Mat Min Exi Min Mat Sto Fac Low Low Dat Pro Fac Fac Was Fac Ext Cet Arc Hub Fac Upp Upp War Pro Res Qua Res Tes Sec Acc Com Machines Disabled 85 | . . . . 2 4 1 4 1 . . 1 1 6 . 3 1 2 2 19 8 . . . . 5 10 . 5 7 1 2 Max in Single Turn 15 | . . . . 2 2 1 4 . . . . . . . . . . 1 15 7 . . . . 1 1 . 1 1 1 1 Garrison Access 3 | . . . . . . . . . . . . . . . . . . . . 1 . . . . . . 1 . . 1 . Network Hub 2 | . . . . . . . . . . . . . . . . . . . 2 . . . . . . . . . . . . Machines Sabotaged 1 | . . . . . . . . . . . . . . . . . . . 1 . . . . . . . . . . . . Garrisons Compromised . | . . . . . . . . . . . . . . . . . . . . . . . . . . . . . . . . Overloaded Fab Kills . | . . . . . . . . . . . . . . . . . . . . . . . . . . . . . . . . Fab Network Shutdowns 1 | . . . . . . . . . . . . . 1 . . . . . . . . . . . . . . . . . . Hacking | -11 -10 -10 -10 -9 -8 -8 -7 -7 -7 -7 -6 -6 -5 -5 -5 -5 -5 -5 -5 -4 -4 -4 -4 -3 -3 -3 -2 -2 -2 -1 -1 --------- Run | Scr Mat Min Exi Min Mat Sto Fac Low Low Dat Pro Fac Fac Was Fac Ext Cet Arc Hub Fac Upp Upp War Pro Res Qua Res Tes Sec Acc Com Machines Accessed 85 | . 3 . 2 1 6 6 6 . . 3 . 6 5 . 2 6 . . 3 7 . . 2 . 9 5 2 4 . 4 3 Terminals 57 | . 2 . . . 6 6 5 . . . . 3 1 . 2 6 . . 2 2 . . . . 8 4 1 4 . 3 2 Fabricators 6 | . . . . . . . 1 . . . . 1 2 . . . . . . 2 . . . . . . . . . . . Repair Stations 2 | . . . . . . . . . . . . . . . . . . . . 1 . . . . . . . . . . 1 Recycling Units 1 | . 1 . . . . . . . . . . . . . . . . . . . . . . . . . . . . . . Scanalyzers 3 | . . . . . . . . . . . . 1 . . . . . . . 1 . . . . . 1 . . . . . Garrison Access 8 | . . . . . . . . . . . . 1 2 . . . . . 1 1 . . . . 1 . 1 . . 1 . Total Hacks 423 | . 11 . 2 1 14 22 13 . . 24 . 36 26 . 8 16 . . 15 52 . . 5 . 78 49 11 23 . 9 8 Successful 272 | . 5 . 2 1 5 11 5 . . 24 . 28 21 . 6 13 . . 12 44 . . 5 . 46 25 5 10 . 3 1 Failed 149 | . 6 . . . 9 11 8 . . . . 8 5 . 2 3 . . 2 8 . . . . 32 23 6 13 . 6 7 Catastrophic 22 | . 1 . . . 1 2 1 . . . . 2 . . . . . . . . . . . . 6 3 . 2 . 1 3 Database Lockouts 2 | . . . . . . . . . . . . . . . . . . . 1 . . . . . . 1 . . . . . Manual 199 | . 6 . 1 . 13 13 5 . . . . 22 18 . 3 6 1 . 11 28 . . 1 . 37 16 1 10 . 1 6 Terminals 304 | . 9 . . . 14 22 10 . . . . 19 9 . 8 16 . . 14 24 . . . . 73 39 10 23 . 8 6 Fabricators 31 | . . . . . . . 3 . . . . 6 9 . . . . . . 13 . . . . . . . . . . . Repair Stations 10 | . . . . . . . . . . . . . . . . . . . . 8 . . . . . . . . . . 2 Recycling Units 2 | . 2 . . . . . . . . . . . . . . . . . . . . . . . . . . . . . . Scanalyzers 18 | . . . . . . . . . . . . 7 . . . . . . . 1 . . . . . 10 . . . . . Garrison Access 26 | . . . . . . . . . . . . 4 8 . . . . . 1 6 . . . . 5 . 1 . . 1 . Terminal Hacks 188 | . 3 . 2 1 3 9 2 . . 24 . 14 7 . 6 13 . . 9 17 . . 5 . 40 18 4 8 . 3 . Record 9 | . . . 1 . . . . . . 6 . . . . . 1 . . . . . . . . 1 . . . . . . Part Schematic 17 | . . . . . 1 . . . . 7 . 3 . . . 1 . . . 1 . . . . 2 1 . 1 . . . Robot Schematic 11 | . . . . . . . . . . 8 . . . . . . . . 1 . . . . . 1 1 . . . . . Robot Analysis 2 | . 1 . . . . . . . . . . . . . . . . . . . . . . . 1 . . . . . . Prototype ID Bank 25 | . 2 . . . . 2 . . . 3 . . . . 1 1 . . 4 1 . . 4 . 2 4 . 1 . . . Open Door 12 | . . . . 1 . 2 . . . . . . . . 1 4 . . . . . . 1 . . . . . . 3 . Level Access Points 3 | . . . . . . . . . . . . 1 . . . . . . 1 . . . . . 1 . . . . . . Branch Access Points 7 | . . . . . . . 1 . . . . 1 1 . 1 . . . . 1 . . . . 1 . 1 . . . . Emergency Access Points 3 | . . . . . . . . . . . . . . . . . . . . . . . . . 1 1 . 1 . . . Machine Index 3 | . . . . . . . . . . . . 1 . . . . . . . 1 . . . . . 1 . . . . . Terminal Index 3 | . . . . . . 1 . . . . . . . . . . . . . . . . . . 1 . . 1 . . . Fabricator Index 1 | . . . . . . . . . . . . . . . . . . . . 1 . . . . . . . . . . . Repair Station Index 1 | . . . . . . . . . . . . . . . . . . . . . . . . . 1 . . . . . . Recycling Unit Index 1 | . . . . . . . . . . . . . . . . . . . . . . . . . 1 . . . . . . Scanalyzer Index 1 | . . . . . . . . . . . . . . . . . . . . . . . . . 1 . . . . . . Garrison Index 1 | . . . . . . . . . . . . . . . . . . . . . . . . . 1 . . . . . . Alert Level 16 | . . . . . 1 1 . . . . . 1 1 . 1 2 . . . 3 . . . . 3 2 . 1 . . . Unreport Threat 20 | . . . . . . 2 1 . . . . . 5 . 1 1 . . . 4 . . . . 3 2 1 . . . . Locate Traps 13 | . . . . . 1 1 . . . . . 2 . . 1 2 . . . 1 . . . . 3 2 . . . . . Disarm Traps 3 | . . . . . . . . . . . . . . . . 1 . . . . . . . . 2 . . . . . . Reprogram Traps 1 | . . . . . . . . . . . . . . . . . . . . . . . . . 1 . . . . . . Dispatch Records 2 | . . . . . . . . . . . . . . . . . . . . 1 . . . . . 1 . . . . . Maintenance Status 1 | . . . . . . . . . . . . . . . . . . . . . . . . . 1 . . . . . . Patrol Status 6 | . . . . . . . . . . . . 2 . . . . . . 1 1 . . . . 2 . . . . . . Transport Status 3 | . . . . . . . . . . . . 1 . . . . . . . . . . . . 2 . . . . . . Investigation Status 1 | . . . . . . . . . . . . . . . . . . . 1 . . . . . . . . . . . . Recall Investigation 1 | . . . . . . . . . . . . . . . . . . . . . . . . . . . . 1 . . . Recall Reinforcements 1 | . . . . . . . . . . . . . . . . . . . . . . . . . . 1 . . . . . Hauler Manifests 4 | . . . . . . . . . . . . 1 . . . . . . . 1 . . . . 1 . 1 . . . . Registered Components 4 | . . . . . . . . . . . . . . . . . . . . . . . . . 1 1 1 1 . . . Registered Prototypes 1 | . . . . . . . . . . . . . . . . . . . . . . . . . 1 . . . . . . Zone Layout 9 | . . . . . . . . . . . . 1 . . . . . . 1 1 . . . . 5 1 . . . . . EX-Prototype ID Bank 1 | . . . 1 . . . . . . . . . . . . . . . . . . . . . . . . . . . . Protovariant Controls 1 | . . . . . . . . . . . . . . . . . . . . . . . . . . . . 1 . . . Fabricator Hacks 20 | . . . . . . . 1 . . . . 4 7 . . . . . . 8 . . . . . . . . . . . Load Schematic 6 | . . . . . . . . . . . . 1 3 . . . . . . 2 . . . . . . . . . . . Build 14 | . . . . . . . 1 . . . . 3 4 . . . . . . 6 . . . . . . . . . . . Repair Station Hacks 8 | . . . . . . . . . . . . . . . . . . . . 7 . . . . . . . . . . 1 Scan Component 4 | . . . . . . . . . . . . . . . . . . . . 4 . . . . . . . . . . . Repair 3 | . . . . . . . . . . . . . . . . . . . . 3 . . . . . . . . . . . Refit 1 | . . . . . . . . . . . . . . . . . . . . . . . . . . . . . . . 1 Recycling Unit Hacks 1 | . 1 . . . . . . . . . . . . . . . . . . . . . . . . . . . . . . Report Inventory 1 | . 1 . . . . . . . . . . . . . . . . . . . . . . . . . . . . . . Scanalyzer 10 | . . . . . . . . . . . . 4 . . . . . . . 1 . . . . . 5 . . . . . Insert Component 8 | . . . . . . . . . . . . 4 . . . . . . . 1 . . . . . 3 . . . . . Analyze 2 | . . . . . . . . . . . . . . . . . . . . . . . . . . 2 . . . . . Garrison Access Hacks 1 | . . . . . . . . . . . . . . . . . . . . . . . . . . . 1 . . . . Seal Access 1 | . . . . . . . . . . . . . . . . . . . . . . . . . . . 1 . . . . Unauthorized Hacks 44 | . 1 . . . 2 2 2 . . . . 6 7 . . . . . 3 11 . . . . 6 2 . 2 . . . Terminals 16 | . . . . . 2 2 2 . . . . 1 . . . . . . 2 1 . . . . 3 1 . 2 . . . Track 1 | . . . . . . . . . . . . . . . . . . . . . . . . . . . . 1 . . . Assimilate 4 | . . . . . 1 . 2 . . . . . . . . . . . . 1 . . . . . . . . . . . Botnet 4 | . . . . . . 1 . . . . . . . . . . . . . . . . . . 2 1 . . . . . Disrupt 1 | . . . . . . . . . . . . . . . . . . . . . . . . . 1 . . . . . . Operators 4 | . . . . . 1 1 . . . . . 1 . . . . . . . . . . . . . . . 1 . . . Sabotage 2 | . . . . . . . . . . . . . . . . . . . 2 . . . . . . . . . . . . Fabricators 8 | . . . . . . . . . . . . 2 1 . . . . . . 5 . . . . . . . . . . . Report 1 | . . . . . . . . . . . . . . . . . . . . 1 . . . . . . . . . . . Prioritize 4 | . . . . . . . . . . . . 1 1 . . . . . . 2 . . . . . . . . . . . Siphon 3 | . . . . . . . . . . . . 1 . . . . . . . 2 . . . . . . . . . . . Repair Stations . | . . . . . . . . . . . . . . . . . . . . . . . . . . . . . . . . Recycling Units 1 | . 1 . . . . . . . . . . . . . . . . . . . . . . . . . . . . . . Tunnel 1 | . 1 . . . . . . . . . . . . . . . . . . . . . . . . . . . . . . Scanalyzers 1 | . . . . . . . . . . . . . . . . . . . . . . . . . . 1 . . . . . Researchers 1 | . . . . . . . . . . . . . . . . . . . . . . . . . . 1 . . . . . Garrison Access 18 | . . . . . . . . . . . . 3 6 . . . . . 1 5 . . . . 3 . . . . . . Broadcast 5 | . . . . . . . . . . . . 1 2 . . . . . . 1 . . . . 1 . . . . . . Reprogram 12 | . . . . . . . . . . . . 2 3 . . . . . 1 4 . . . . 2 . . . . . . Watchers 1 | . . . . . . . . . . . . . 1 . . . . . . . . . . . . . . . . . . Data Cores Recovered 2 | . . . . . . . . . . . . . . . . . . . . . . . . . 2 . . . . . . Used . | . . . . . . . . . . . . . . . . . . . . . . . . . . . . . . . . Hacking Detections 52 | . 2 . . . 5 6 6 . . . . 5 2 . 2 2 . . . 3 . . . . 7 5 1 2 . 1 3 Full Trace Events 2 | . 1 . . . . . . . . . . . . . . . . . . . . . . . . . . . . . 1 Feedback Events . | . . . . . . . . . . . . . . . . . . . . . . . . . . . . . . . . Feedback Blocked . | . . . . . . . . . . . . . . . . . . . . . . . . . . . . . . . . Robot Schematics Acquired 11 | . . . . . . . . . . 8 . . . . . . . . 1 . . . . . 1 1 . . . . . Robots Built 18 | . . . . . . . 3 . . . . 4 3 . . . . . . 8 . . . . . . . . . . . Matter 2792 | . . . . . . . 252 . . . . 714 636 . . . . . . 1190 . . . . . . . . . . . Time 1060 | . . . . . . . 134 . . . . 337 168 . . . . . . 421 . . . . . . . . . . . Total Robot Build Rating 102 | . . . . . . . 12 . . . . 24 18 . . . . . . 48 . . . . . . . . . . . Part Schematics Acquired 19 | . . . . . 1 . . . . 7 . 3 . . . 1 . . . 1 . . . . 2 3 . 1 . . . Parts Built 1 | . . . . . . . . . . . . . 1 . . . . . . . . . . . . . . . . . . Matter 190 | . . . . . . . . . . . . . 190 . . . . . . . . . . . . . . . . . . Time 47 | . . . . . . . . . . . . . 47 . . . . . . . . . . . . . . . . . . Total Part Build Rating 5 | . . . . . . . . . . . . . 5 . . . . . . . . . . . . . . . . . . Parts Repaired 3 | . . . . . . . . . . . . . . . . . . . . 3 . . . . . . . . . . . Time 136 | . . . . . . . . . . . . . . . . . . . . 136 . . . . . . . . . . . Parts Recycled . | . . . . . . . . . . . . . . . . . . . . . . . . . . . . . . . . Recycled Matter . | . . . . . . . . . . . . . . . . . . . . . . . . . . . . . . . . Retrieved Matter . | . . . . . . . . . . . . . . . . . . . . . . . . . . . . . . . . Retrieved Components . | . . . . . . . . . . . . . . . . . . . . . . . . . . . . . . . . Parts Scanalyzed 2 | . . . . . . . . . . . . . . . . . . . . . . . . . . 2 . . . . . Part Schematics Acquired 2 | . . . . . . . . . . . . . . . . . . . . . . . . . . 2 . . . . . Parts Damaged . | . . . . . . . . . . . . . . . . . . . . . . . . . . . . . . . . Bothacking | -11 -10 -10 -10 -9 -8 -8 -7 -7 -7 -7 -6 -6 -5 -5 -5 -5 -5 -5 -5 -4 -4 -4 -4 -3 -3 -3 -2 -2 -2 -1 -1 ------------ Run | Scr Mat Min Exi Min Mat Sto Fac Low Low Dat Pro Fac Fac Was Fac Ext Cet Arc Hub Fac Upp Upp War Pro Res Qua Res Tes Sec Acc Com Used RIF Installer . | . . . . . . . . . . . . . . . . . . . . . . . . . . . . . . . . Robots Hacked 1 | . . . . . . . . . . . . . 1 . . . . . . . . . . . . . . . . . . Non-combat 1 | . . . . . . . . . . . . . 1 . . . . . . . . . . . . . . . . . . Combat . | . . . . . . . . . . . . . . . . . . . . . . . . . . . . . . . . Robot Hacks Applied 1 | . . . . . . . . . . . . . 1 . . . . . . . . . . . . . . . . . . find_chute 1 | . . . . . . . . . . . . . 1 . . . . . . . . . . . . . . . . . . Relay Couplers Released 17 | . . . . . . . . . . . . . . . . . . . . 6 . . . . 4 . . . . 7 . Machine Destruction 3 | . . . . . . . . . . . . . . . . . . . . . . . . . . . . . . 3 . Programmers 14 | . . . . . . . . . . . . . . . . . . . . 6 . . . . 4 . . . . 4 . Robots Rewired 34 | . . . . . . . 1 2 . . 2 . . . . 28 . . . . . . . . . . . 1 . . . Allies Hacked 11 | . . . . . . . . . . . . 1 2 2 . . . . . 1 . 2 . . 3 . . . . . . Hacks Repelled 4 | . . . . . . . . . . . . . . . 1 . . . . 3 . . . . . . . . . . . Allies | -11 -10 -10 -10 -9 -8 -8 -7 -7 -7 -7 -6 -6 -5 -5 -5 -5 -5 -5 -5 -4 -4 -4 -4 -3 -3 -3 -2 -2 -2 -1 -1 -------- Run | Scr Mat Min Exi Min Mat Sto Fac Low Low Dat Pro Fac Fac Was Fac Ext Cet Arc Hub Fac Upp Upp War Pro Res Qua Res Tes Sec Acc Com Total Allies 145 | . . . . 2 1 1 6 2 . 1 2 6 10 21 . 37 5 . . 18 . 2 . . 7 8 . 1 7 . 8 Largest Group 24 | . . . . 2 2 1 5 3 3 1 2 6 14 24 13 15 9 3 . 8 4 6 4 . 4 8 . 1 7 . 4 Highest-Rated Group 1102 | . . . . 49 49 15 142 86 66 59 61 276 588 1102 528 582 380 285 . 409 216 277 213 . 310 116 . 147 100 . 54 Highest-Rated Ally 156 | . . . . 31 31 15 30 30 26 59 32 54 65 141 141 156 156 95 . 56 54 56 54 . 84 15 . 147 15 . 15 Total Orders 42 | . . . . . . . 1 10 5 2 12 . . 2 2 1 1 1 . . 2 . . . . . 2 1 . . . STAY 7 | . . . . . . . 1 . . 1 . . . 1 . 1 1 . . . 1 . . . . . . 1 . . . ROAM 2 | . . . . . . . . . . . . . . 1 . . . 1 . . . . . . . . . . . . . FOLLOW 1 | . . . . . . . . . . . . . . . . . . . . . 1 . . . . . . . . . . EXPLORE 4 | . . . . . . . . . . . . . . . 2 . . . . . . . . . . . 2 . . . . RETURN 28 | . . . . . . . . 10 5 1 12 . . . . . . . . . . . . . . . . . . . . Ally Attacks 1045 | . . . . . 3 7 16 65 35 . 48 28 128 98 112 104 70 24 . 134 10 38 7 . 44 33 . 8 25 . 8 Total Damage 27404 | . . . . . 65 151 421 1653 707 . 1148 825 3889 3522 2086 2638 1771 1123 . 2855 284 1055 113 . 1376 642 . 295 636 . 149 Kills 190 | . . . . . . 4 3 14 5 . 10 7 38 6 20 13 12 2 . 18 2 12 . . 12 6 . 3 3 . . Allies Corrupted 6 | . . . . . . . . . . . . . 1 . . . . . . 1 . . . . 1 . . 1 2 . . Allies Melted 2 | . . . . . . . 1 . . . . . . . . . . . . . . . . . . . 1 . . . . Turrets Deployed 3 | . . . . . . . . . . . . . . 2 1 . . . . . . . . . . . . . . . . Field Lobotomies 5 | . . . . . . 1 . . . 1 . . . . . 3 . . . . . . . . . . . . . . . Intel | -11 -10 -10 -10 -9 -8 -8 -7 -7 -7 -7 -6 -6 -5 -5 -5 -5 -5 -5 -5 -4 -4 -4 -4 -3 -3 -3 -2 -2 -2 -1 -1 ------- Run | Scr Mat Min Exi Min Mat Sto Fac Low Low Dat Pro Fac Fac Was Fac Ext Cet Arc Hub Fac Upp Upp War Pro Res Qua Res Tes Sec Acc Com Robot Analysis Total 2 | . 1 . . . . . . . . . . . . . . . . . . . . . . . 1 . . . . . . Derelict Logs Recovered 6 | . . . . 2 . . . 1 1 . 1 . . . . . . . . . 1 . . . . . . . . . . Drone Launches 96 | . . . . . . . 2 23 17 5 43 . . . 2 2 . . . . . . . . . . 2 . . . . Drone Recoveries 81 | . . . . . . . . 15 17 3 42 . . . 2 2 . . . . . . . . . . . . . . . Exploration | -11 -10 -10 -10 -9 -8 -8 -7 -7 -7 -7 -6 -6 -5 -5 -5 -5 -5 -5 -5 -4 -4 -4 -4 -3 -3 -3 -2 -2 -2 -1 -1 ------------- Run | Scr Mat Min Exi Min Mat Sto Fac Low Low Dat Pro Fac Fac Was Fac Ext Cet Arc Hub Fac Upp Upp War Pro Res Qua Res Tes Sec Acc Com Turns Passed 29752 | 175 1073 287 607 397 2206 746 1286 659 665 207 721 597 643 569 299 1573 413 715 368 2291 807 886 984 638 2113 1790 873 1663 1328 1276 897 Spaces Moved 14162 | 100 408 149 369 217 756 307 801 404 369 100 344 331 526 382 249 731 174 216 160 784 488 510 497 303 528 841 466 667 624 461 900 Core 755 | 43 . . . . . 5 . . . . . . . . . . . . . . . . . . . . . . . . 707 Treads 8196 | 12 308 149 369 71 635 302 78 . . . . . . . . . 35 216 160 784 488 510 497 303 528 465 466 667 576 459 118 Legs 264 | 45 100 . . . . . . . . . . . . . . . . . . . . . . . . 44 . . . . 75 Wheels 4897 | . . . . 146 121 . 723 404 369 100 344 331 526 382 249 731 139 . . . . . . . . 332 . . . . . Hover . | . . . . . . . . . . . . . . . . . . . . . . . . . . . . . . . . Flight . | . . . . . . . . . . . . . . . . . . . . . . . . . . . . . . . . Fastest Speed 50 | 50 120 160 160 130 130 145 100 150 150 165 165 100 100 102 102 102 105 160 160 160 160 160 160 160 145 101 150 147 147 143 50 Average Speed 143 | 94 150 160 160 153 186 164 114 150 163 165 169 122 101 102 102 118 130 160 160 162 160 160 160 160 164 156 158 154 147 148 68 Slowest Speed 500 | 160 160 160 160 260 260 500 160 155 165 165 275 140 117 102 102 160 180 160 160 260 160 160 260 260 370 265 160 260 147 165 193 Overloaded Moves . | . . . . . . . . . . . . . . . . . . . . . . . . . . . . . . . . Propulsion Burnouts . | . . . . . . . . . . . . . . . . . . . . . . . . . . . . . . . . Robots Hopped 1 | . . . . 1 . . . . . . . . . . . . . . . . . . . . . . . . . . . Cave-ins Triggered 2 | . . . . . . . . . . . . . . . . . . . . . . . . . 1 . . 1 . . . Teleports 5 | . . . . . . . . . . . . . . . . . . . . . . . . . . 3 . . 1 1 . Spacefolds 21 | . . . . . . . . . . . . . . . . . . . . . . . . . . . . . 20 1 . Exploration Rate (%) 50 | 3 54 28 68 59 67 61 31 72 66 76 64 13 17 89 12 76 66 83 25 17 82 63 63 52 18 69 27 71 55 20 42 Regions Visited 31 Branch Regions 20 Pre-discovered Areas 3 | . 1 . 1 . . . . . . 1 . . . . . . . . . . . . . . . . . . . . . Known Exits Taken 11 | . . . . . 1 1 1 . . . 1 1 . . 1 . . . 1 1 . . . . 1 1 1 . . . . Unknown Exits Taken 18 | 1 1 1 1 1 . . . 1 1 1 . . . . . 1 1 1 . . 1 1 1 1 . . . 1 1 1 . Scrap Searched 17 | . . . . 2 . . . 2 6 . 3 . . . . . . . . . 1 2 . 1 . . . . . . . Spaces Dug 216 | . 2 1 . 18 . . 11 . . . . 3 1 . . . . . . 10 . . . 6 23 3 1 41 21 3 72 Terrain Destroyed 1428 | . 2 1 . 70 112 23 118 . 25 . 95 3 1 . . 9 6 3 226 47 . 2 20 13 93 44 8 147 35 187 138 Melee 45 | . 1 1 . . . . . . . . . 3 1 . . . . . . . . . . . . . 1 18 20 . . Projectile 256 | . 1 . . . . 4 . . . . . . . . . . . 3 . 34 . . 20 13 85 26 2 9 15 30 14 AOE 1127 | . . . . 70 112 19 118 . 25 . 95 . . . . 9 6 . 226 13 . 2 . . 8 18 5 120 . 157 124 Terrain Rammed . | . . . . . . . . . . . . . . . . . . . . . . . . . . . . . . . . Walls Destroyed . | . . . . . . . . . . . . . . . . . . . . . . . . . . . . . . . . Machines Disabled . | . . . . . . . . . . . . . . . . . . . . . . . . . . . . . . . . Actions | -11 -10 -10 -10 -9 -8 -8 -7 -7 -7 -7 -6 -6 -5 -5 -5 -5 -5 -5 -5 -4 -4 -4 -4 -3 -3 -3 -2 -2 -2 -1 -1 --------- Run | Scr Mat Min Exi Min Mat Sto Fac Low Low Dat Pro Fac Fac Was Fac Ext Cet Arc Hub Fac Upp Upp War Pro Res Qua Res Tes Sec Acc Com Total 21685 | 150 811 175 393 270 1337 460 1076 445 405 124 451 493 630 522 288 1401 314 490 263 1691 511 574 658 419 1586 1157 579 1176 889 848 1099 Wait 4676 | . 304 9 . 37 378 48 125 15 19 7 55 122 66 116 31 488 71 203 57 769 12 19 81 46 876 73 22 332 90 165 40 Move 14101 | 99 407 148 368 215 755 306 800 403 368 99 343 330 526 381 248 730 173 215 159 783 487 509 496 302 527 840 465 666 595 459 899 Hop 1 | . . . . 1 . . . . . . . . . . . . . . . . . . . . . . . . . . . Pick Up 237 | 2 24 2 9 2 9 9 6 2 2 4 1 4 3 . 1 5 6 7 2 14 3 14 12 6 19 20 12 13 10 11 3 Fast Attach 256 | 10 4 . . 1 15 13 19 1 1 1 . 4 7 1 1 4 11 6 1 10 1 . 2 1 11 37 11 23 21 14 25 Attach 209 | . 5 . 2 . 6 4 5 . . . 3 4 3 . 1 10 2 6 3 8 . 1 10 5 29 20 7 18 19 18 20 Detach 130 | 3 1 . . . 2 2 5 . . . . . 4 1 1 7 3 3 . 3 1 . 4 3 10 11 7 15 14 10 20 Swap 168 | 1 11 4 1 3 15 5 10 . 3 4 3 9 4 . 1 5 6 7 1 12 2 . 11 5 9 11 . 2 1 12 10 Drop 354 | 1 22 . 13 4 21 15 21 1 . 1 . 5 12 3 1 4 10 9 4 12 2 15 16 6 14 37 17 29 12 17 30 Fire 1156 | 34 24 4 . 6 127 49 72 5 12 8 20 10 1 . . 27 19 26 32 64 3 12 23 41 89 92 35 48 85 141 47 Melee 177 | . 6 6 . . 3 3 . . . . . 5 4 20 3 6 13 8 3 10 . . . . . 15 3 27 42 . . Ram 1 | . . . . . . . . . . . . . . . . . . . . . . . . . . . . . . . 1 Kick 3 | . . . . . . . . . . . . . . . . . . . . . . . . . . . . . . . 3 Crush 31 | . 3 2 . 1 6 6 1 . . . . . . . . . . . 1 6 . . . . 2 1 . . . 1 1 Escape Stasis 32 | . . . . . . . . . . . . . . . . 32 . . . . . . . . . . . . . . . Rewire 145 | . . . . . . . 12 18 . . 26 . . . . 83 . . . . . 3 . . . . . 3 . . . Trap 8 | . . . . . . . . . . . . . . . . . . . . . . 1 3 4 . . . . . . . Miscellaneous . | . . . . . . . . . . . . . . . . . . . . . . . . . . . . . . . . Route ------- -11/Scrapyard -10/Materials (discovered 3 exits: [*Mat] / [*Min x2]) -10/Mines (discovered 2 exits: [*Mat] / *Exi) -10/Exiles -9/Mines -8/Materials (discovered 3 exits: *Fac x2 / *Sto) -8/Storage -7/Factory (discovered 3 exits: *Fac / *Low x2) -7/Lower Caves -7/Lower Caves (discovered 2 exits: *Fac / *Dat) -7/Data Miner -6/Proximity Caves -6/Factory (discovered 6 exits: *Fac x4 / *Low x2) -5/Factory (discovered 4 exits: *Upp x2 / Ext x2) -5/Waste -5/Factory (discovered 4 exits: *Upp x2 / *Ext x2) -5/Extension (discovered 2 exits: *Fac / *Cet) -5/Cetus (discovered 2 exits: *Fac / [*Arc]) -5/Archives (discovered 3 exits: *Fac / *Hub x2) -5/Hub_04(d) (discovered 4 exits: *Fac x4) -4/Factory (discovered 2 exits: *Upp x2) -4/Upper Caves -4/Upper Caves -4/Warlord -3/Proximity Caves -3/Research (discovered 6 exits: Res x3 / Arm / *Qua x2) -3/Quarantine -2/Research (discovered 3 exits: *Acc / *Tes x2) -2/Testing (discovered 2 exits: *Acc / [*Sec]) -2/Section 7 -1/Access -1/Command To Fleet Rendezvous History --------- Turn | Location | Event 3 | -11/Scrapyard | Discovered new exit (range 16) 176 | -11/Scrapyard | Entered Materials 302 | -10/Materials | Build established: Mutant 518 | -10/Materials | Discovered new exit (range 11) 886 | -10/Materials | Discovered new exit (range 5) 1041 | -10/Materials | Discovered new exit (range 8) 1249 | -10/Materials | Entered Mines 1266 | -10/Mines | Assembled infested the area 1449 | -10/Mines | Received a Rocket Launcher from a helpful Derelict 1504 | -10/Mines | Discovered new exit (range 8) 1530 | -10/Mines | Discovered new exit (range 5) 1536 | -10/Mines | Entered Exiles 1562 | -10/Exiles | Discovered new exit (range 15) 1575 | -10/Exiles | Met 8R-AWN 1602 | -10/Exiles | Met EX-HEX 1661 | -10/Exiles | Met EX-DEC 1690 | -10/Exiles | Learned location of Zion (-6) 1861 | -10/Exiles | Met EX-BIN 1879 | -10/Exiles | Aligned with FarCom system 1880 | -10/Exiles | Given EX-Vault access code 1925 | -10/Exiles | Opened EX-Vault 1939 | -10/Exiles | Found Deploy-a-Sentry 1942 | -10/Exiles | Found Deploy-a-Sentry 1946 | -10/Exiles | Found Deploy-a-Sentry 1950 | -10/Exiles | Found Field Lobotomy Kit 1960 | -10/Exiles | Found Army-in-a-Box 2007 | -10/Exiles | Warned to stay clear of 0b10 Research branches 2143 | -10/Exiles | Stole three prototypes: Army-in-a-Box, Field Lobotomy Kit, Deploy-a-Sentry 2143 | -10/Exiles | Entered Mines 2147 | -9/Mines | Learned location of 1 exit from Materials 2175 | -9/Mines | Met a Derelict who couldn't figure out how to use a Trap Extractor 2517 | -9/Mines | Discovered new exit (range 10) 2540 | -9/Mines | Entered Materials 2540 | -8/Materials | Accompanied by 2 allies 2540 | -8/Materials | Evolved 4 slots: Utility x4 2541 | -8/Materials | Identified exit to Storage 2542 | -8/Materials | Identified exit to Factory 2545 | -8/Materials | Led the pair of lost Derelicts to an unsafe place 2854 | -8/Materials | Discovered exit to Factory (range 13) 3170 | -8/Materials | Garrison activated, responded to threat 3528 | -8/Materials | Build established: Skirmisher 4371 | -8/Materials | Build established: Mutant 4746 | -8/Materials | Entered Storage 4746 | -8/Storage | Accompanied by 1 ally 4755 | -8/Storage | Found Prototype Launcher 4755 | -8/Storage | Identified Scatter Rocket Array 4924 | -8/Storage | Core integrity fell below 50% 4927 | -8/Storage | Assimilated Y-45 Defender with FLK Orb 4958 | -8/Storage | Destroyed 9 combat bots 4958 | -8/Storage | Lost 7 parts (1p2n2u2w) 5468 | -8/Storage | Discovered exit to Factory (range 16) 5492 | -8/Storage | Entered Factory 5492 | -7/Factory | Evolved 2 slots: Utility x2 5494 | -7/Factory | FarCom data flow suspended 6159 | -7/Factory | Build established: Scavenger-Mutant 6429 | -7/Factory | Discovered new exit (range 9) 6438 | -7/Factory | Identified exit to Factory 6481 | -7/Factory | Build established: Mutant 6592 | -7/Factory | Discovered new exit (range 16) 6594 | -7/Factory | Identified exit to Lower Caves 6677 | -7/Factory | Fabricated L-41 Fighter? 6763 | -7/Factory | Garrison activated, responded to threat 6778 | -7/Factory | Entered Lower Caves 6778 | -7/Lower Caves | Accompanied by 5 allies 6778 | -7/Lower Caves | Spotted MN-7UE(f) 6778 | -7/Lower Caves | Spotted XB-YZI(f) 6779 | -7/Lower Caves | Encountered a Master Thief 6779 | -7/Lower Caves | Encountered a Master Thief 6783 | -7/Lower Caves | Allies destroyed XB-YZI(f) 6785 | -7/Lower Caves | Allies destroyed MN-7UE(f) 7009 | -7/Lower Caves | Attracted the attention of an 0b10 checkpoint 7217 | -7/Lower Caves | Learned Factory emergency access door positions 7291 | -7/Lower Caves | Attracted the attention of an 0b10 outpost 7378 | -7/Lower Caves | Discovered new exit (range 13) 7388 | -7/Lower Caves | Encountered a Warlord checkpoint 7437 | -7/Lower Caves | Entered another Lower Caves area 7437 | -7/Lower Caves | Accompanied by 6 allies 7437 | -7/Lower Caves | Spotted H2-LMG(f) 7438 | -7/Lower Caves | Encountered a Master Thief 7439 | -7/Lower Caves | Allies destroyed H2-LMG(f) 7492 | -7/Lower Caves | Discovered exit to Factory (range 10) 7634 | -7/Lower Caves | Spotted B-75 Beast 7720 | -7/Lower Caves | Allies destroyed B-75 Beast 7986 | -7/Lower Caves | Discovered new exit (range 16) 8064 | -7/Lower Caves | Learned Factory security intel 8102 | -7/Lower Caves | Entered Data Miner 8102 | -7/Data Miner | Accompanied by 3 allies 8102 | -7/Data Miner | Discovered new exit (range 6) 8134 | -7/Data Miner | Met Data Miner 8168 | -7/Data Miner | Learned location of Section 7 (-2) 8168 | -7/Data Miner | Acquired the access code to Warlord's prototype stash 8192 | -7/Data Miner | Received God Mode back door access code from Data Miner 8211 | -7/Data Miner | Assimilated Data Miner with FLK Orb 8279 | -7/Data Miner | Destroyed Data Miner 8285 | -7/Data Miner | Found Prototype Hackware 8290 | -7/Data Miner | Found Prototype Hackware 8292 | -7/Data Miner | Found Prototype Hackware 8295 | -7/Data Miner | Found Prototype Hackware 8309 | -7/Data Miner | Entered Proximity Caves 8309 | -6/Proximity Caves | Accompanied by 5 allies 8352 | -6/Proximity Caves | Attracted the attention of an 0b10 outpost 8388 | -6/Proximity Caves | Destroyed 7 combat bots 8838 | -6/Proximity Caves | Learned 4 Factory zone layouts 8905 | -6/Proximity Caves | Spotted B-75 Beast 9012 | -6/Proximity Caves | Discovered exit to Factory (range 9) 9030 | -6/Proximity Caves | Entered Factory 9030 | -6/Factory | Evolved 2 slots: Propulsion x2 9105 | -6/Factory | Identified System Mapper 9105 | -6/Factory | Identified Deep Network Scanner 9105 | -6/Factory | Identified Ghost Barrier 9138 | -6/Factory | Identified Quantum Router 9140 | -6/Factory | Identified exit to Lower Caves 9262 | -6/Factory | Fabricated P-70 Sage (x2) 9346 | -6/Factory | Fabricated P-70 Sage (x2) 9401 | -6/Factory | Identified exit to Factory 9417 | -6/Factory | Sage 5a assimilated hostile W-25 Informer 9488 | -6/Factory | Build established: Wizard-Mutant 9627 | -6/Factory | Entered another Factory area 9627 | -5/Factory | Accompanied by 6 allies 9627 | -5/Factory | Evolved 2 slots: Utility x1, Weapon x1 9737 | -5/Factory | Fabricated Hvy. Reactive Plating (x1) 9821 | -5/Factory | Fabricated P-70 Sage (x2) 9824 | -5/Factory | Fabricated I-47 Archangel? 9907 | -5/Factory | Garrison activated, responded to threat 9982 | -5/Factory | Found Launcher Loader 10120 | -5/Factory | Local fabrication network quarantined 10149 | -5/Factory | Identified exit to Upper Caves 10149 | -5/Factory | Identified exit to Extension 10227 | -5/Factory | First assault squad dispatched 10270 | -5/Factory | Sucked down chute 10270 | -5/Factory | Entered Waste 10293 | -5/Waste | Spotted C-40 Crusher 10314 | -5/Waste | Spotted C-40 Crusher 10319 | -5/Waste | Spotted C-40 Crusher 10328 | -5/Waste | Spotted C-40 Crusher 10367 | -5/Waste | DAS Turret deployed 10368 | -5/Waste | DAS Turret deployed 10373 | -5/Waste | Allies destroyed C-40 Crusher 10379 | -5/Waste | Allies destroyed C-40 Crusher 10385 | -5/Waste | Allies destroyed C-40 Crusher 10388 | -5/Waste | Sage 6c assimilated hostile C-40 Crusher 10472 | -5/Waste | Spotted C-40 Crusher 10498 | -5/Waste | Spotted C-40 Crusher 10546 | -5/Waste | Allies destroyed C-40 Crusher 10550 | -5/Waste | 3 allies followed down the chute 10575 | -5/Waste | Sage 6e assimilated hostile C-40 Crusher 10585 | -5/Waste | 6 allies followed down the chute 10635 | -5/Waste | Warlord forces began an assault 10715 | -5/Waste | Discovered new exit (range 13) 10839 | -5/Waste | Entered Factory 10839 | -5/Factory | Accompanied by 13 allies 11034 | -5/Factory | Garrison activated, responded to threat 11068 | -5/Factory | DAS Turret deployed 11138 | -5/Factory | Entered Extension 11138 | -5/Extension | Accompanied by 4 allies 11181 | -5/Extension | Rescued a captive Derelict 11182 | -5/Extension | Rescued a captive Derelict 11254 | -5/Extension | Rescued a captive Derelict 11583 | -5/Extension | Assimilated Y-64 Sentinel with FLK Orb 12008 | -5/Extension | Assimilated Y-64 Sentinel with FLK Orb 12066 | -5/Extension | Spotted B-75 Beast 12081 | -5/Extension | Assimilated B-75 Beast with FLK Orb 12083 | -5/Extension | Spotted B-75 Beast 12263 | -5/Extension | Disrupted transfer network 12456 | -5/Extension | Rescued A7 12604 | -5/Extension | Rescued a captive Derelict 12605 | -5/Extension | Rescued a captive Derelict 12677 | -5/Extension | Discovered new exit (range 10) 12678 | -5/Extension | Discovered new exit (range 6) 12711 | -5/Extension | Entered Cetus 12711 | -5/Cetus | Accompanied by 9 allies (A7) 12716 | -5/Cetus | Acquired a Cetus Manufacturing Module code from A7 12728 | -5/Cetus | Spotted Cetus Guard 12728 | -5/Cetus | Spotted Cetus Guard 12729 | -5/Cetus | Spotted Cetus Guard 12735 | -5/Cetus | Destroyed Cetus Guard 12739 | -5/Cetus | Spotted Cetus Guard 12739 | -5/Cetus | Allies destroyed Cetus Guard 12745 | -5/Cetus | Allies destroyed Cetus Guard 12752 | -5/Cetus | Allies destroyed Cetus Guard 12800 | -5/Cetus | Destroyed A7 12806 | -5/Cetus | Extracted ID and sensor layout for unrecognized location from A7's data core 12814 | -5/Cetus | Found Prototype Protection 12814 | -5/Cetus | Identified Med. Regenerative Plating 12928 | -5/Cetus | Started Cetus Manufacturing Module 12953 | -5/Cetus | Manufactured an Enhanced Grunt 12965 | -5/Cetus | Discovered new exit (range 16) 12978 | -5/Cetus | Manufactured an Enhanced Grunt 13000 | -5/Cetus | Spotted Cetus Guard 13000 | -5/Cetus | Spotted Cetus Guard 13003 | -5/Cetus | Manufactured an Enhanced Grunt 13004 | -5/Cetus | Spotted Cetus Guard 13008 | -5/Cetus | Allies destroyed Cetus Guard 13016 | -5/Cetus | Spotted Cetus Guard 13018 | -5/Cetus | Allies destroyed Cetus Guard 13021 | -5/Cetus | Destroyed Cetus Guard 13028 | -5/Cetus | Manufactured an Enhanced Grunt 13041 | -5/Cetus | Discovered new exit (range 15) 13046 | -5/Cetus | System corruption reached 10% 13053 | -5/Cetus | Manufactured an Enhanced Grunt 13055 | -5/Cetus | Cetus Manufacturing Module disabled 13124 | -5/Cetus | Entered Archives 13124 | -5/Archives | Accompanied by 3 allies 13243 | -5/Archives | Discovered new exit (range 16) 13364 | -5/Archives | Discovered new exit (range 16) 13520 | -5/Archives | Discovered new exit (range 14) 13618 | -5/Archives | Build established: Wizard-Tank 13839 | -5/Archives | Entered Hub_04(d) 13860 | -5/Hub_04(d) | Identified exit to Factory 13860 | -5/Hub_04(d) | Central database locked down 13884 | -5/Hub_04(d) | Garrison activated, responded to threat 14016 | -5/Hub_04(d) | Build established: Wizard-Mutant 14139 | -5/Hub_04(d) | First assault squad dispatched 14183 | -5/Hub_04(d) | Network Hub disabled 14183 | -5/Hub_04(d) | Network Hub disabled 14188 | -5/Hub_04(d) | Spotted Lightning 14189 | -5/Hub_04(d) | Spotted Lightning 14189 | -5/Hub_04(d) | Spotted Lightning 14204 | -5/Hub_04(d) | Spotted Lightning 14207 | -5/Hub_04(d) | Entered Factory 14207 | -4/Factory | Evolved 2 slots: Utility x2 14703 | -4/Factory | Identified exit to Upper Caves 14846 | -4/Factory | Repaired Centrium Heavy Treads 14905 | -4/Factory | Repaired Centrium Heavy Treads 14938 | -4/Factory | Repaired Imp. Weapon Cycler? 14945 | -4/Factory | Build established: Wizard-Gunner 15069 | -4/Factory | Garrison activated, responded to threat 15338 | -4/Factory | Fabricated P-70 Sage (x2) 15347 | -4/Factory | Build established: Wizard-Mutant 15380 | -4/Factory | Fabricated P-70 Sage (x2) 15526 | -4/Factory | Garrison activated, responded to threat 15783 | -4/Factory | Build established: Wizard-Gunner 15805 | -4/Factory | Spotted B-86 Titan 15833 | -4/Factory | Destroyed B-86 Titan 16409 | -4/Factory | Fabricated P-70 Sage (x2) 16457 | -4/Factory | First assault squad dispatched 16493 | -4/Factory | Fabricated P-70 Sage? 16498 | -4/Factory | Entered Upper Caves 16498 | -4/Upper Caves | Accompanied by 4 allies 16538 | -4/Upper Caves | Spotted B-86 Titan 16764 | -4/Upper Caves | Allies destroyed B-86 Titan 17070 | -4/Upper Caves | Build established: Wizard-Tank 17158 | -4/Upper Caves | Discovered new exit (range 15) 17170 | -4/Upper Caves | Learned Research terminal intel 17305 | -4/Upper Caves | Entered another Upper Caves area 17305 | -4/Upper Caves | Accompanied by 4 allies 17457 | -4/Upper Caves | Sage 7h assimilated hostile S-27 Virus 17894 | -4/Upper Caves | Spotted CN-IDQ(f) 17894 | -4/Upper Caves | Spotted T8-L5B(f) 17894 | -4/Upper Caves | Spotted 3H-5JM(f) 17894 | -4/Upper Caves | Spotted 29-DKZ(f) 17895 | -4/Upper Caves | Encountered a Master Thief 17895 | -4/Upper Caves | Encountered a Master Thief 17895 | -4/Upper Caves | Encountered a Master Thief 17895 | -4/Upper Caves | Encountered a Master Thief 17895 | -4/Upper Caves | Spotted 62-MRS(f) 17896 | -4/Upper Caves | Encountered a Master Thief 17899 | -4/Upper Caves | Allies destroyed 29-DKZ(f) 17903 | -4/Upper Caves | Allies destroyed 62-MRS(f) 17903 | -4/Upper Caves | Allies destroyed 3H-5JM(f) 17904 | -4/Upper Caves | Allies destroyed T8-L5B(f) 17904 | -4/Upper Caves | Allies destroyed CN-IDQ(f) 17923 | -4/Upper Caves | Discovered new exit (range 7) 17981 | -4/Upper Caves | System corruption reached 10% 18191 | -4/Upper Caves | Entered Warlord 18191 | -4/Warlord | Accompanied by 4 allies 18224 | -4/Warlord | Build established: Wizard-Mutant 18245 | -4/Warlord | System corruption cleaned by Quarantine Array 18575 | -4/Warlord | Met Warlord 18589 | -4/Warlord | Opened Warlord's prototype stash 18597 | -4/Warlord | Found Prototype Processor 18600 | -4/Warlord | Warlord's base attacked by MAIN.C 18741 | -4/Warlord | Found Prototype Energy Cannon 18741 | -4/Warlord | Identified Vortex Cannon 18744 | -4/Warlord | Found Vortex Cannon 18950 | -4/Warlord | Warlord forces counterattacked 18982 | -4/Warlord | Identified Exp. Core Analyzer 19046 | -4/Warlord | Spotted Executioner 19046 | -4/Warlord | Destroyed Executioner 19065 | -4/Warlord | Found Prototype Ballistic Cannon 19149 | -4/Warlord | Identified Hvy. Autocannon 19162 | -4/Warlord | Discovered new exit (range 9) 19175 | -4/Warlord | Entered Proximity Caves 19198 | -3/Proximity Caves | Spotted B-86 Titan 19211 | -3/Proximity Caves | Build established: Wizard-Tank 19257 | -3/Proximity Caves | Destroyed B-86 Titan 19795 | -3/Proximity Caves | Discovered new exit (range 5) 19813 | -3/Proximity Caves | System corruption reached 30% 19813 | -3/Proximity Caves | Entered Research 19813 | -3/Research | Evolved 2 slots: Utility x2 19814 | -3/Research | Loaded intel: 21 terminal locations 19829 | -3/Research | Identified exit to Armory 19829 | -3/Research | Identified exit to Quarantine 20138 | -3/Research | Garrison activated, responded to threat 20455 | -3/Research | Destroyed 7 combat bots 20460 | -3/Research | Lost 3 parts (1n2w) 20612 | -3/Research | Build established: Wizard-Gunner 21790 | -3/Research | P-80 Master assimilated hostile Y-72 Warden 21823 | -3/Research | Spotted Executioner 21824 | -3/Research | Cargo convoy interrupted 21824 | -3/Research | Spotted Executioner 21824 | -3/Research | Identified exit to Research 21844 | -3/Research | Spotted Striker 21870 | -3/Research | System corruption reached 10% 21903 | -3/Research | Spotted B-90 Cyclops 21912 | -3/Research | Crushed by falling debris 21920 | -3/Research | Core integrity fell below 50% 21926 | -3/Research | Entered Quarantine 21945 | -3/Quarantine | Found Prototype Device 21945 | -3/Quarantine | Identified Exp. Thermal Defense Suite 21971 | -3/Quarantine | Found Alien Artifact 21975 | -3/Quarantine | Found Alien Artifact 21976 | -3/Quarantine | Lost 14 parts (1p2n6u5w) 21977 | -3/Quarantine | Found Alien Artifact 21980 | -3/Quarantine | Found Alien Artifact 21993 | -3/Quarantine | Found Alien Artifact 21993 | -3/Quarantine | Identified Dimensional Node Initializer 21993 | -3/Quarantine | Initialized slip node 21997 | -3/Quarantine | Found Dimensional Node Initializer 21999 | -3/Quarantine | Found Dimensional Node Initializer 22036 | -3/Quarantine | Found Alien Artifact 22036 | -3/Quarantine | Identified Phase Redirector 22082 | -3/Quarantine | Spotted Alpha 7 22084 | -3/Quarantine | Identified Hpw. Transdimensional Reconstructor (x2) 22084 | -3/Quarantine | Warped through subspace to slip node 22158 | -3/Quarantine | Identified Transdimensional Reconstructor (x2) 22158 | -3/Quarantine | Warped through subspace to slip node 22198 | -3/Quarantine | Build established: Wizard-Mutant 22335 | -3/Quarantine | Warped through subspace to slip node 22525 | -3/Quarantine | Found Alien Impact Weapon 22525 | -3/Quarantine | Identified Core Stripper 22604 | -3/Quarantine | Found Alien Artifact 22604 | -3/Quarantine | Identified Phase Armor 22661 | -3/Quarantine | Found Alien Artifact 22661 | -3/Quarantine | Identified Core Reset Matrix 22661 | -3/Quarantine | Used Core Reset Matrix 22665 | -3/Quarantine | Detected hypermatrix surge 22665 | -3/Quarantine | Emitted hypermatrix ping 22665 | -3/Quarantine | Sensed 6 artifacts in vicinity 22670 | -3/Quarantine | Assembled emerged from beneath the floor 22750 | -3/Quarantine | Discovered exit to Research (range 15) 22788 | -3/Quarantine | Found Subatomic Replicator 22860 | -3/Quarantine | Found Unknown Launcher 22996 | -3/Quarantine | Core integrity fell below 20% 23150 | -3/Quarantine | Found Sigix Broadsword 23180 | -3/Quarantine | Found Matter Drive 23266 | -3/Quarantine | Central database locked down 23315 | -3/Quarantine | Found Core Cannon 23426 | -3/Quarantine | First assault squad dispatched 23430 | -3/Quarantine | Build established: Hacker-Mutant 23468 | -3/Quarantine | Identified Fusion Bomb Launcher 23648 | -3/Quarantine | Lost 3 parts (1p2u) 23716 | -3/Quarantine | Entered Research 23716 | -2/Research | Warlord forces began assault on 0b10 23716 | -2/Research | Evolved 2 slots: Power x1, Weapon x1 23815 | -2/Research | Identified exit to Testing 23826 | -2/Research | Research machine network offline 23911 | -2/Research | Destroyed 8 combat bots 24113 | -2/Research | Found Prototype Device 24202 | -2/Research | Identified Exp. Shield Generator 24213 | -2/Research | Borebot progress halted 24493 | -2/Research | Discovered new exit (range 20) 24585 | -2/Research | Spotted Executioner 24586 | -2/Research | Spotted Striker 24589 | -2/Research | Entered Testing 24602 | -2/Testing | Spotted PH-SB3JC6L1FT 24612 | -2/Testing | Rewired PH-SB3JC6L1FT 24866 | -2/Testing | Protovariant out of control (PP-RFNWHXMI9O) 24866 | -2/Testing | Unleashed a protovariant (PP-RFNWHXMI9O) 25153 | -2/Testing | Found Corrupted Prototype Device 25153 | -2/Testing | Identified Exp. Phase Shifter 25154 | -2/Testing | System corruption reached 10% 25171 | -2/Testing | System corruption reached 30% 25184 | -2/Testing | Found Corrupted Prototype Reactor 25189 | -2/Testing | Found Corrupted Prototype Reactor 25189 | -2/Testing | Identified Zero-point Reactor (x2) 25254 | -2/Testing | Garrison activated, responded to threat 25439 | -2/Testing | Build established: Scavenger-Mutant 25466 | -2/Testing | Crushed by falling debris 25514 | -2/Testing | Found Prototype Hackware 25520 | -2/Testing | Identified Exp. System Shield 25575 | -2/Testing | Found Prototype Energy Cannon 25575 | -2/Testing | Identified Hpw. Disruptor Cannon 25748 | -2/Testing | Found Prototype Energy Cannon 25748 | -2/Testing | Identified Imp. Potential Cannon 25836 | -2/Testing | Build established: Hacker-Mutant 25909 | -2/Testing | Discovered new exit (range 16) 25998 | -2/Testing | Found Prototype Protection 25998 | -2/Testing | Identified Lgt. Regenerative Plating 26004 | -2/Testing | Found Prototype Protection 26004 | -2/Testing | Identified SHELL Armor 26085 | -2/Testing | Spotted Fortress 26094 | -2/Testing | Destroyed Fortress 26106 | -2/Testing | Found Prototype Device 26106 | -2/Testing | Identified Thermal Barrier 26110 | -2/Testing | Found Prototype Device 26110 | -2/Testing | Identified Exp. Force Field 26116 | -2/Testing | Found Prototype Device 26116 | -2/Testing | Identified EM Dispersion Field 26124 | -2/Testing | First assault squad dispatched 26244 | -2/Testing | Discovered new exit (range 6) 26252 | -2/Testing | Entered Section 7 26253 | -2/Section 7 | Sensed 22 artifacts in vicinity 26272 | -2/Section 7 | Found Spacefold Activator 26395 | -2/Section 7 | Found Integrated Reactor 26395 | -2/Section 7 | Installed Integrated Reactor, increased core energy generation (+10) 26502 | -2/Section 7 | First assault squad dispatched 26550 | -2/Section 7 | Used Subatomic Replicator to replicate Integrated Reactor 26551 | -2/Section 7 | Found Integrated Reactor 26551 | -2/Section 7 | Installed Integrated Reactor, increased core energy generation (+10) 26554 | -2/Section 7 | Installed Integrated Reactor, increased core energy generation (+10) 26642 | -2/Section 7 | Found Integrated Mediator 26642 | -2/Section 7 | Installed Integrated Mediator, increased core attachment efficiency. 26707 | -2/Section 7 | Spotted S7 Guard 26735 | -2/Section 7 | Destroyed S7 Guard 26741 | -2/Section 7 | Found Core Regenerator 26844 | -2/Section 7 | Spotted Executioner 26847 | -2/Section 7 | Spotted Executioner 26851 | -2/Section 7 | Spotted Alpha 7 26853 | -2/Section 7 | Spotted Alpha 7 26886 | -2/Section 7 | Initialized slip node 26895 | -2/Section 7 | Found Transdimensional Reconstructor 26899 | -2/Section 7 | Found Transdimensional Reconstructor 26899 | -2/Section 7 | Warped through subspace 26926 | -2/Section 7 | Lost 3 parts (2u1w) 27028 | -2/Section 7 | Found Matter Drive 27126 | -2/Section 7 | Found Sigix Quantum Sheargun 27129 | -2/Section 7 | Found Sigix Quantum Sheargun 27177 | -2/Section 7 | Spotted Striker 27177 | -2/Section 7 | Spotted Striker 27189 | -2/Section 7 | Build established: Alien-Mutant 27292 | -2/Section 7 | Core integrity fell below 50% 27305 | -2/Section 7 | Found Core Reset Matrix 27308 | -2/Section 7 | Sensed 10 artifacts in vicinity 27350 | -2/Section 7 | Found LRC Insulator 27350 | -2/Section 7 | Installed LRC Insulator, gained EM resistance (25) 27353 | -2/Section 7 | Found LRC Energy Well 27353 | -2/Section 7 | Installed LRC Energy Well, increased energy storage capacity (+250) 27390 | -2/Section 7 | Found LRC Boosters 27390 | -2/Section 7 | Installed LRC Boosters, increased mass support (+10) 27440 | -2/Section 7 | Found Core Reset Matrix 27443 | -2/Section 7 | Sensed 6 artifacts in vicinity 27444 | -2/Section 7 | Found Core Reset Matrix 27454 | -2/Section 7 | Found Core Reset Matrix 27483 | -2/Section 7 | Emitted hypermatrix ping 27488 | -2/Section 7 | Assembled emerged from beneath the floor 27553 | -2/Section 7 | Discovered new exit (range 3) 27561 | -2/Section 7 | Spotted S7 Guard 27570 | -2/Section 7 | Found Integrated Heat Negator 27570 | -2/Section 7 | Installed Integrated Heat Negator, increased core heat dissipation (+40) 27580 | -2/Section 7 | Entered Access 27580 | -1/Access | Evolved 2 slots: Propulsion x2 27618 | -1/Access | Found Unknown Launcher 27618 | -1/Access | Identified Gamma Bomb Array 27623 | -1/Access | Found Gamma Bomb Array 27626 | -1/Access | Found Gamma Bomb Array 27628 | -1/Access | Found Gamma Bomb Array 27860 | -1/Access | Spotted B-99 Colossus 28268 | -1/Access | Garrison activated, responded to threat 28436 | -1/Access | Destroyed 9 combat bots 28564 | -1/Access | Lost 4 parts (1p1n1u1w) 28580 | -1/Access | First assault squad dispatched 28619 | -1/Access | Warped through subspace 28753 | -1/Access | Discovered new exit (range 7) 28837 | -1/Access | Used Core Regenerator, restored core integrity (+321) 28856 | -1/Access | Entered Command 29165 | -1/Command | System corruption reached 10% 29393 | -1/Command | First assault squad dispatched 29580 | -1/Command | Core integrity fell below 50% 29725 | -1/Command | Spotted Executioner 29726 | -1/Command | Spotted Executioner 29728 | -1/Command | Spotted Striker 29740 | -1/Command | Spotted B-99 Colossus 29741 | -1/Command | Emitted hypermatrix ping 29741 | -1/Command | Spotted Striker 29741 | -1/Command | Spotted Executioner 29741 | -1/Command | Spotted Executioner 29742 | -1/Command | Spotted Alpha 7 29742 | -1/Command | Spotted B-99 Colossus 29742 | -1/Command | Discovered new exit (range 9) 29743 | -1/Command | Spotted Alpha 7 29746 | -1/Command | Assembled emerged from beneath the floor 29753 | -1/Command | Core integrity fell below 20% 29753 | *** | Heading to fleet! Last Messages --------------- 29749_ Slug penetrates Wall. 29749_ Adv. Target Analyzer destroyed. 29751_ Alpha 7 knocked back. 29751_ as-43504 destroyed. 29751_ Slug penetrates B-99 Colossus. 29751_ Slug penetrates Wall. 29751_ Penetrated by Slug. 29751_ Slug penetrates Reinforced Barrier. 29752_ System corrupted: Component data lost. 29752_ Penetrated by Slug. 29752_ Slug penetrates Wall. 29752_ Penetrated by Slug. 29752_ Biometal Heavy Treads destroyed. 29752_ Penetrated by Slug. 29752_ Slug penetrates Reinforced Barrier. 29753_ Knocked back. 29753_ Penetrated by Slug. 29753_ Slug penetrates Wall. 29753_ Penetrated by Slug. 29753_ Slug penetrates Wall. Map ----- +----------------------------------------------------+ | | | | | ?????????????????????????????????????????????????? | | ?????????????????????????????????????????????????? | | ?????????????????????????????????????????????????? | | ?????????????????????????????????????????????????? | | ???????????????????????????????????????????### #?? | | ???????????????????????????????????????####""""### | | ???????????????????????????????????????# # | | ???????????????????????????????????????# # | | ???????????????????????????????????????# # | | ?????????????????????????????????????### + | | ?????????????????????????????????????# " # | | ???????????????????????????????????### " %%= # | | ?????????????????????????????????### =R"" # | | ????????????????????????????????## """ + | | ????????????????????????????????# "####/## | | ??????????????????##?????###???###% #??# | | ??????????????????#;######;####;;#%# ##??# | | ??????????????????#; %BB;#=########???# | | ???????????????????# BB;;%#;####?????# | | ??????????????????## %%; %%; #?????# | | ??????????????????#; %% ^7 ##### | | ??????????????????#; ^ % / | | ??????????????????## %" / | | ???????????????????# @" % / | | ???????????????????# % % ^ ^ / | | ???????????????????# EK 7 ######## | | ???????????????????# #E# # # ###??????? | | ???????????????????# BB#########????????? | | ???????????????????# BB#????????????????? | | ???????????????????######;#######????????????????? | | ????????????????????????###??????????????????????? | | ?????????????????????????????????????????????????? | | ?????????????????????????????????????????????????? | | ?????????????????????????????????????????????????? | | ?????????????????????????????????????????????????? | | ?????????????????????????????????????????????????? | | ?????????????????????????????????????????????????? | | ?????????????????????????????????????????????????? | | ?????????????????????????????????????????????????? | | ?????????????????????????????????????????????????? | | ?????????????????????????????????????????????????? | | ?????????????????????????????????????????????????? | | ????????????????????????????????????????????????+# | | ????????????????????????????????????????? | | ????????????????????????????????????????????????## | | ????????????????????????????????????????????###### | | ???????????????????????????????????????????# | | ???????????????????????????????????????????# | +----------------------------------------------------+ Best States ------------- Heat Dissipation 130 Coolant Potential 200 Energy Generation 91 Energy Capacity 1830 Matter Stores 550 Matter Capacity 600 Sight Range 20 Robot Scan Range 16 Terrain Scan Range 16 Terrain Scan Density 60 Power Amplification 30 Additional Mass Support 16 Base Temperature (-) 200 EM Shielding 4 Armor Coverage 2100 Resistance: KI 40 Resistance: EM 100 Propulsion Shielding 66 Weapon Shielding 66 Weapon Cycling 30 Phase Shifting 20 Evasion (%) 60 Targeting Accuracy 16 Melee Accuracy 8 Launcher Accuracy 40 Target Analysis 8 Core Analysis 10 Armor Integrity Analysis 40 Recoil Reduction 6 Matter Filtering 30 Kinecelleration 40 Stasis Canceling 2 Offensive Hacking 69 Defensive Hacking 69 Item Schematics ----------------- None Robot Schematics ------------------ None Fabricated ------------ L-41 Fighter | x3 | -7/Factory | Preloaded P-70 Sage | x2 | -6/Factory P-70 Sage | x2 | -6/Factory Hvy. Reactive Plating | x1 | -5/Factory P-70 Sage | x2 | -5/Factory I-47 Archangel | x1 | -5/Factory P-70 Sage | x2 | -4/Factory P-70 Sage | x2 | -4/Factory P-70 Sage | x2 | -4/Factory P-70 Sage | x2 | -4/Factory Alien Tech Used ----------------- Dimensional Node Initializer Phase Redirector High-powered Transdimensional Reconstructor Transdimensional Reconstructor Core Stripper Phase Armor Core Reset Matrix Sigix Broadsword Matter Drive Core Cannon Spacefold Activator Integrated Reactor Subatomic Replicator Integrated Mediator LRC Insulator LRC Energy Well LRC Boosters Integrated Heat Negator Sigix Quantum Sheargun Core Regenerator Achievements -------------- None Challenges ------------ None Game ------ Seed SwordGreatExoskeleton Manual? 0 Play Time 03:48:40 Cumulative 1919.5 hours Start 2021.06.04 @ 14:09:53 End 2021.06.04 @ 19:18:10 Sessions 5 Manual Loads 0 Difficulty Rogue Special Mode None Game No. 2560 Rogue 2552 Adventurer 0 Explorer 8 Win Type 2 Total 205 Types 42/27/82/3/3/5/40/2/1 Lore% 99 Gallery% 99 Achievement% 100 Wizard Run 0 Options --------- ASCII 0 Keyboard 1 Movement Vi Keybinds 1 Fullscreen 1 Font 18/SmallcapsGlow Map View 76x50 Tactical HUD 1 Map Filters NONE Filters NONE Steam 1 RUN: d9a538bd-65ee-45e5-bdb1-cca08824b246